{"text_format":"1","workbook":"xlsx","n_sheets":4,"sheets":["RAGAZZE","RAGAZZI","CADETTE","CADETTI"],"not_rendered":{"charts":0,"images":1,"macros":1,"external_links":0,"defined_names":8,"comments":0,"pivot_tables":0},"unopened":[],"bounds":{"document_bytes":16777216,"sheet_cells":100000,"rows_first":2000,"rows_last":500,"rows_between":2000,"halvings":0,"cell_chars":16384,"cell_head_chars":4096},"cells_cut":0,"cells_raw":0,"read":"whole","date_system":"1900"}

{"sheet":"RAGAZZE","index":0,"n_rows":44,"n_cols":62,"rows_kept":44,"cut":false,"hidden":false,"merged":[[5,7,5,8],[5,9,5,10],[5,27,5,28],[5,29,5,30],[5,25,5,26],[5,23,5,24],[5,19,5,20],[5,15,5,16],[3,51,3,56],[5,17,5,18],[5,31,5,32],[3,57,3,62],[4,57,4,62],[5,57,5,58],[5,59,5,60],[5,61,5,62],[5,47,5,48],[5,35,5,36],[5,53,5,54],[5,45,5,46],[4,51,4,56],[4,23,4,30],[5,37,5,38],[5,39,5,40],[5,55,5,56],[4,15,4,22],[5,49,5,50],[5,51,5,52],[5,43,5,44],[5,41,5,42],[5,21,5,22],[5,13,5,14],[5,11,5,12],[3,9,3,14],[4,9,4,14],[3,15,3,22],[3,37,3,42],[4,37,4,42],[3,43,3,50],[4,43,4,50],[5,33,5,34],[2,0,2,5],[3,0,3,5],[3,7,3,8],[3,31,3,36],[4,31,4,36],[3,23,3,30],[4,1,4,2],[4,3,4,5],[4,7,4,8]]}
[]
[]
["GRAN PREMIO GIOVANILE FIDAL PAVIA 2025 RAGAZZE",null,null,null,null,null,null,null,null,null,null,null,null,null,null,null,null,null,null,null,null,null,null,null,null,null,null,null,null,null,null,null,null,null,null,null,null,null,null,null,null,null,null,"2000* = punteggio tabella Cadette"]
["CLASSIFICA DEFINITIVA aggiornata al 13/04/2025 da GRETA MARCHESE",null,null,null,null,null,"PROVA G.P.","1° PROVA G.P.",null,"2° PROVA G.P.",null,null,null,null,null,"3° PROVA G.P.",null,null,null,null,null,null,null,"4° PROVA G.P.",null,null,null,null,null,null,null,"5° PROVA G.P.",null,null,null,null,null,"6° PROVA G.P.",null,null,null,null,null,"7° PROVA G.P.",null,null,null,null,null,null,null,"8° PROVA G.P.",null,null,null,null,null,"9° PROVA G.P."]
[null,"Per segnalazioni di refusi contattare: cp.pavia@fidal.it",null,null,null,null,"MANIFESTAZIONE","SABATO 05/04\nVOGHERA\nXXXVI° MIGLIO CITTA' DI VOGHERA  \nI° RIUNIONE PROVINCIALE RAG / CAD 2025",null,"SABATO 12/04 PAVIA\nIX° MEMORIAL OMERO CAIELLO\nII° RIUNIONE PROVINCIALE RAG / CAD 2025",null,null,null,null,null,"DOMENICA 13/04 VIGEVANO\nIII° RIUNIONE PROVINCIALE RAG / CAD 2025",null,null,null,null,null,null,null,"GIOVEDI' 01/05 PAVIA\nXXVIII° MEETING DELLA LIBERAZIONE - MEMORIAL PAOLO MAGGIONI\nXXI° MEETING FESTA DELLA REPUBBLICA\nV° RIUNIONE PROVINCIALE RAG / CAD 2025",null,null,null,null,null,null,null,"SABATO 03/05 VOGHERA\nMEETING DI PRIMAVERA\nVI° RIUNIONE PROVINCIALE RAG / CAD 2025\nI° GIORNATA CAMPIONATI PROVINCIALI CAD",null,null,null,null,null,"GIOVEDI' 15/05 PAVIA\nVII° RIUNIONE PROVINCIALE RAG / CAD 2025\nII° GIORNATA CAMPIONATI PROVINCIALI RAG / CAD",null,null,null,null,null,"GIOVEDI' 22/05 VIGEVANO\nVIII° RIUNIONE PROVINCIALE RAG / CAD 2025\nIII° GIORNATA CAMPIONATI PROVINCIALI RAG / CAD",null,null,null,null,null,null,null,"DOMENICA 01/06 CASORATE PRIMO\nIX° MEMORIAL LAURA FERRARIO\nIX° RIUNIONE PROVINCIALE RAG / CAD 2025\nIV° GIORNATA CAMPIONATI PROVINCIALI RAG / CAD \nCAMPIONATI PROVINCIALI DI PROVE MULTIPLE RAG / CAD",null,null,null,null,null,"SABATO 04/10 VOGHERA\nMEETING D'AUTUNNO\nXII° RIUNIONE PROVINCIALE RAG / CAD 2025"]
["POS.","ATLETA","SOCIETA'","TOT.","N° MANIF.","N° GARE","GARA","1000 MT.",null,"60 HS",null,"PESO",null,"ALTO",null,"60 MT.",null,"4 X 100 MT.",null,"VORTEX",null,"LUNGO",null,"60 MT.",null,"600 MT.",null,"LUNGO",null,"PESO",null,"60 MT.",null,"1000 MT.",null,"LUNGO",null,"60 HS",null,"ALTO",null,"MARCIA 2 KM",null,"60 MT.",null,"1000 MT.",null,"LUNGO",null,"PESO",null,60,null,"LUNGO",null,"VORTEX",null,60,null,600,null,"LUNGO"]
[1,"ALESSANDRO Eleonora Vittoria","PV108 C.U.S. PAVIA",{"$f":"TopN(H7:BK7,6)","v":2449},{"$f":"SUM(IF(CountRaces(H7:I7)>0,1,0),IF(CountRaces(J7:O7)>0,1,0),IF(CountRaces(P7:W7)>0,1,0),IF(CountRaces(X7:AE7)>0,1,0),IF(CountRaces(AF7:AK7)>0,1,0),IF(CountRaces(AL7:AQ7)>0,1,0),IF(CountRaces(AR7:AY7)>0,1,0),IF(CountRaces(AZ7:BE7)>0,1,0),IF(CountRaces(BF7:BK7)>0,1,0))","v":3},{"$f":"CountRaces(H7:BK7)","v":4},"PREST. / PUNTI","3:47.10 =",593,"11.34 =",692,null,null,null,null,"9.42 =",576,null,null,null,null,"3.85 =",588]
[2,"MAGUGLIANI Sophie","PV108 C.U.S. PAVIA",{"$f":"TopN(H8:BK8,6)","v":2116},{"$f":"SUM(IF(CountRaces(H8:I8)>0,1,0),IF(CountRaces(J8:O8)>0,1,0),IF(CountRaces(P8:W8)>0,1,0),IF(CountRaces(X8:AE8)>0,1,0),IF(CountRaces(AF8:AK8)>0,1,0),IF(CountRaces(AL8:AQ8)>0,1,0),IF(CountRaces(AR8:AY8)>0,1,0),IF(CountRaces(AZ8:BE8)>0,1,0),IF(CountRaces(BF8:BK8)>0,1,0))","v":2},{"$f":"CountRaces(H8:BK8)","v":3},"PREST. / PUNTI","3:25.25 =",842,null,null,null,null,null,null,"9.18 =",623,"1:01.09 =",651]
[3,"GUERRA Adele","PV108 C.U.S. PAVIA",{"$f":"TopN(H9:BK9,6)","v":2027},{"$f":"SUM(IF(CountRaces(H9:I9)>0,1,0),IF(CountRaces(J9:O9)>0,1,0),IF(CountRaces(P9:W9)>0,1,0),IF(CountRaces(X9:AE9)>0,1,0),IF(CountRaces(AF9:AK9)>0,1,0),IF(CountRaces(AL9:AQ9)>0,1,0),IF(CountRaces(AR9:AY9)>0,1,0),IF(CountRaces(AZ9:BE9)>0,1,0),IF(CountRaces(BF9:BK9)>0,1,0))","v":2},{"$f":"CountRaces(H9:BK9)","v":3},"PREST. / PUNTI",null,null,"11.37 =",688,null,null,null,null,"9.08 =",642,"59.70 =",697]
[4,"PEZZI Aurora","PV108 C.U.S. PAVIA",{"$f":"TopN(H10:BK10,6)","v":1902},{"$f":"SUM(IF(CountRaces(H10:I10)>0,1,0),IF(CountRaces(J10:O10)>0,1,0),IF(CountRaces(P10:W10)>0,1,0),IF(CountRaces(X10:AE10)>0,1,0),IF(CountRaces(AF10:AK10)>0,1,0),IF(CountRaces(AL10:AQ10)>0,1,0),IF(CountRaces(AR10:AY10)>0,1,0),IF(CountRaces(AZ10:BE10)>0,1,0),IF(CountRaces(BF10:BK10)>0,1,0))","v":2},{"$f":"CountRaces(H10:BK10)","v":3},"PREST. / PUNTI",null,null,null,null,null,null,"1.20 =",605,null,null,"59.70 =",697,null,null,"3.90 =",600]
[5,"CARVANI Maddalena","PV245 ATL. IRIENSE VOGHERA",{"$f":"TopN(H11:BK11,6)","v":1858},{"$f":"SUM(IF(CountRaces(H11:I11)>0,1,0),IF(CountRaces(J11:O11)>0,1,0),IF(CountRaces(P11:W11)>0,1,0),IF(CountRaces(X11:AE11)>0,1,0),IF(CountRaces(AF11:AK11)>0,1,0),IF(CountRaces(AL11:AQ11)>0,1,0),IF(CountRaces(AR11:AY11)>0,1,0),IF(CountRaces(AZ11:BE11)>0,1,0),IF(CountRaces(BF11:BK11)>0,1,0))","v":2},{"$f":"CountRaces(H11:BK11)","v":3},"PREST. / PUNTI","3:49.54 =",568,null,null,null,null,null,null,"9.45 =",570,"59.00 =",720]
[6,"FALZONE Rachele","PV245 ATL. IRIENSE VOGHERA",{"$f":"TopN(H12:BK12,6)","v":1779},{"$f":"SUM(IF(CountRaces(H12:I12)>0,1,0),IF(CountRaces(J12:O12)>0,1,0),IF(CountRaces(P12:W12)>0,1,0),IF(CountRaces(X12:AE12)>0,1,0),IF(CountRaces(AF12:AK12)>0,1,0),IF(CountRaces(AL12:AQ12)>0,1,0),IF(CountRaces(AR12:AY12)>0,1,0),IF(CountRaces(AZ12:BE12)>0,1,0),IF(CountRaces(BF12:BK12)>0,1,0))","v":2},{"$f":"CountRaces(H12:BK12)","v":3},"PREST. / PUNTI","4:02.70 =",442,null,null,null,null,null,null,"9.21 =",617,"59.00 =",720]
[7,"MARAGNANI Emma","PV108 C.U.S. PAVIA",{"$f":"TopN(H13:BK13,6)","v":1733},{"$f":"SUM(IF(CountRaces(H13:I13)>0,1,0),IF(CountRaces(J13:O13)>0,1,0),IF(CountRaces(P13:W13)>0,1,0),IF(CountRaces(X13:AE13)>0,1,0),IF(CountRaces(AF13:AK13)>0,1,0),IF(CountRaces(AL13:AQ13)>0,1,0),IF(CountRaces(AR13:AY13)>0,1,0),IF(CountRaces(AZ13:BE13)>0,1,0),IF(CountRaces(BF13:BK13)>0,1,0))","v":2},{"$f":"CountRaces(H13:BK13)","v":3},"PREST. / PUNTI","3:54.22 =",522,null,null,null,null,null,null,"9.74 =",514,"59.70 =",697]
[8,"IACOPINI Emma","PV108 C.U.S. PAVIA",{"$f":"TopN(H14:BK14,6)","v":1635},{"$f":"SUM(IF(CountRaces(H14:I14)>0,1,0),IF(CountRaces(J14:O14)>0,1,0),IF(CountRaces(P14:W14)>0,1,0),IF(CountRaces(X14:AE14)>0,1,0),IF(CountRaces(AF14:AK14)>0,1,0),IF(CountRaces(AL14:AQ14)>0,1,0),IF(CountRaces(AR14:AY14)>0,1,0),IF(CountRaces(AZ14:BE14)>0,1,0),IF(CountRaces(BF14:BK14)>0,1,0))","v":2},{"$f":"CountRaces(H14:BK14)","v":2},"PREST. / PUNTI",null,null,"9.89 =",921,null,null,null,null,null,null,null,null,null,null,"4.36 =",714]
[9,"KAUR Gurnoor","PV108 C.U.S. PAVIA",{"$f":"TopN(H15:BK15,6)","v":1607},{"$f":"SUM(IF(CountRaces(H15:I15)>0,1,0),IF(CountRaces(J15:O15)>0,1,0),IF(CountRaces(P15:W15)>0,1,0),IF(CountRaces(X15:AE15)>0,1,0),IF(CountRaces(AF15:AK15)>0,1,0),IF(CountRaces(AL15:AQ15)>0,1,0),IF(CountRaces(AR15:AY15)>0,1,0),IF(CountRaces(AZ15:BE15)>0,1,0),IF(CountRaces(BF15:BK15)>0,1,0))","v":2},{"$f":"CountRaces(H15:BK15)","v":3},"PREST. / PUNTI",null,null,"11.53 =",665,null,null,null,null,"10.00 =",465,null,null,null,null,"3.39 =",477]
[10,"MARAGNANI Maria","PV108 C.U.S. PAVIA",{"$f":"TopN(H16:BK16,6)","v":1586},{"$f":"SUM(IF(CountRaces(H16:I16)>0,1,0),IF(CountRaces(J16:O16)>0,1,0),IF(CountRaces(P16:W16)>0,1,0),IF(CountRaces(X16:AE16)>0,1,0),IF(CountRaces(AF16:AK16)>0,1,0),IF(CountRaces(AL16:AQ16)>0,1,0),IF(CountRaces(AR16:AY16)>0,1,0),IF(CountRaces(AZ16:BE16)>0,1,0),IF(CountRaces(BF16:BK16)>0,1,0))","v":2},{"$f":"CountRaces(H16:BK16)","v":3},"PREST. / PUNTI","3:56.16 =",503,null,null,null,null,null,null,null,null,"1:01.09 =",651,null,null,"3.20 =",432]
[11,"POPESCU Sonia Consuelo","PV245 ATL. IRIENSE VOGHERA",{"$f":"TopN(H17:BK17,6)","v":1350},{"$f":"SUM(IF(CountRaces(H17:I17)>0,1,0),IF(CountRaces(J17:O17)>0,1,0),IF(CountRaces(P17:W17)>0,1,0),IF(CountRaces(X17:AE17)>0,1,0),IF(CountRaces(AF17:AK17)>0,1,0),IF(CountRaces(AL17:AQ17)>0,1,0),IF(CountRaces(AR17:AY17)>0,1,0),IF(CountRaces(AZ17:BE17)>0,1,0),IF(CountRaces(BF17:BK17)>0,1,0))","v":1},{"$f":"CountRaces(H17:BK17)","v":2},"PREST. / PUNTI",null,null,null,null,null,null,null,null,null,null,"59.00 =",720,null,null,"4.02 =",630]
[12,"IEMMA Benedetta","PV108 C.U.S. PAVIA",{"$f":"TopN(H18:BK18,6)","v":1253},{"$f":"SUM(IF(CountRaces(H18:I18)>0,1,0),IF(CountRaces(J18:O18)>0,1,0),IF(CountRaces(P18:W18)>0,1,0),IF(CountRaces(X18:AE18)>0,1,0),IF(CountRaces(AF18:AK18)>0,1,0),IF(CountRaces(AL18:AQ18)>0,1,0),IF(CountRaces(AR18:AY18)>0,1,0),IF(CountRaces(AZ18:BE18)>0,1,0),IF(CountRaces(BF18:BK18)>0,1,0))","v":1},{"$f":"CountRaces(H18:BK18)","v":2},"PREST. / PUNTI",null,null,null,null,null,null,null,null,null,null,"59.70 =",697,null,null,"3.72 =",556]
[13,"DONCA Adina","PV108 C.U.S. PAVIA",{"$f":"TopN(H19:BK19,6)","v":1088},{"$f":"SUM(IF(CountRaces(H19:I19)>0,1,0),IF(CountRaces(J19:O19)>0,1,0),IF(CountRaces(P19:W19)>0,1,0),IF(CountRaces(X19:AE19)>0,1,0),IF(CountRaces(AF19:AK19)>0,1,0),IF(CountRaces(AL19:AQ19)>0,1,0),IF(CountRaces(AR19:AY19)>0,1,0),IF(CountRaces(AZ19:BE19)>0,1,0),IF(CountRaces(BF19:BK19)>0,1,0))","v":1},{"$f":"CountRaces(H19:BK19)","v":2},"PREST. / PUNTI",null,null,null,null,null,null,null,null,null,null,"1:01.09 =",651,null,null,"3.22 =",437]
[14,"TAMBURELLI Azzurra","PV108 C.U.S. PAVIA",{"$f":"TopN(H20:BK20,6)","v":1079},{"$f":"SUM(IF(CountRaces(H20:I20)>0,1,0),IF(CountRaces(J20:O20)>0,1,0),IF(CountRaces(P20:W20)>0,1,0),IF(CountRaces(X20:AE20)>0,1,0),IF(CountRaces(AF20:AK20)>0,1,0),IF(CountRaces(AL20:AQ20)>0,1,0),IF(CountRaces(AR20:AY20)>0,1,0),IF(CountRaces(AZ20:BE20)>0,1,0),IF(CountRaces(BF20:BK20)>0,1,0))","v":1},{"$f":"CountRaces(H20:BK20)","v":2},"PREST. / PUNTI",null,null,null,null,null,null,null,null,null,null,"1:01.09 =",651,null,null,"3.18 =",428]
[15,"MARINONE Vittoria","PV412 LA PODISTICA ROBBIESE",{"$f":"TopN(H21:BK21,6)","v":1058},{"$f":"SUM(IF(CountRaces(H21:I21)>0,1,0),IF(CountRaces(J21:O21)>0,1,0),IF(CountRaces(P21:W21)>0,1,0),IF(CountRaces(X21:AE21)>0,1,0),IF(CountRaces(AF21:AK21)>0,1,0),IF(CountRaces(AL21:AQ21)>0,1,0),IF(CountRaces(AR21:AY21)>0,1,0),IF(CountRaces(AZ21:BE21)>0,1,0),IF(CountRaces(BF21:BK21)>0,1,0))","v":1},{"$f":"CountRaces(H21:BK21)","v":2},"PREST. / PUNTI",null,null,null,null,null,null,null,null,"9.36 =",587,"1:06.80 =",471]
[16,"MARTANI Emma","PV412 LA PODISTICA ROBBIESE",{"$f":"TopN(H22:BK22,6)","v":997},{"$f":"SUM(IF(CountRaces(H22:I22)>0,1,0),IF(CountRaces(J22:O22)>0,1,0),IF(CountRaces(P22:W22)>0,1,0),IF(CountRaces(X22:AE22)>0,1,0),IF(CountRaces(AF22:AK22)>0,1,0),IF(CountRaces(AL22:AQ22)>0,1,0),IF(CountRaces(AR22:AY22)>0,1,0),IF(CountRaces(AZ22:BE22)>0,1,0),IF(CountRaces(BF22:BK22)>0,1,0))","v":1},{"$f":"CountRaces(H22:BK22)","v":2},"PREST. / PUNTI",null,null,null,null,null,null,null,null,"9.68 =",526,"1:06.80 =",471]
[17,"MENGATO Emma","PV412 LA PODISTICA ROBBIESE",{"$f":"TopN(H23:BK23,6)","v":968},{"$f":"SUM(IF(CountRaces(H23:I23)>0,1,0),IF(CountRaces(J23:O23)>0,1,0),IF(CountRaces(P23:W23)>0,1,0),IF(CountRaces(X23:AE23)>0,1,0),IF(CountRaces(AF23:AK23)>0,1,0),IF(CountRaces(AL23:AQ23)>0,1,0),IF(CountRaces(AR23:AY23)>0,1,0),IF(CountRaces(AZ23:BE23)>0,1,0),IF(CountRaces(BF23:BK23)>0,1,0))","v":1},{"$f":"CountRaces(H23:BK23)","v":2},"PREST. / PUNTI",null,null,null,null,null,null,null,null,"9.83 =",497,"1:06.80 =",471]
[18,"MENGATO Angelica","PV412 LA PODISTICA ROBBIESE",{"$f":"TopN(H24:BK24,6)","v":931},{"$f":"SUM(IF(CountRaces(H24:I24)>0,1,0),IF(CountRaces(J24:O24)>0,1,0),IF(CountRaces(P24:W24)>0,1,0),IF(CountRaces(X24:AE24)>0,1,0),IF(CountRaces(AF24:AK24)>0,1,0),IF(CountRaces(AL24:AQ24)>0,1,0),IF(CountRaces(AR24:AY24)>0,1,0),IF(CountRaces(AZ24:BE24)>0,1,0),IF(CountRaces(BF24:BK24)>0,1,0))","v":1},{"$f":"CountRaces(H24:BK24)","v":2},"PREST. / PUNTI",null,null,null,null,null,null,null,null,"10.03 =",460,"1:06.80 =",471]
[19,"BERRANI Jamina Alice","PV108 C.U.S. PAVIA",{"$f":"TopN(H25:BK25,6)","v":845},{"$f":"SUM(IF(CountRaces(H25:I25)>0,1,0),IF(CountRaces(J25:O25)>0,1,0),IF(CountRaces(P25:W25)>0,1,0),IF(CountRaces(X25:AE25)>0,1,0),IF(CountRaces(AF25:AK25)>0,1,0),IF(CountRaces(AL25:AQ25)>0,1,0),IF(CountRaces(AR25:AY25)>0,1,0),IF(CountRaces(AZ25:BE25)>0,1,0),IF(CountRaces(BF25:BK25)>0,1,0))","v":2},{"$f":"CountRaces(H25:BK25)","v":2},"PREST. / PUNTI",null,null,null,null,"7.14 =",384,null,null,null,null,null,null,null,null,"3.32 =",461]
[20,"MUCCIOLO Mia","PV108 C.U.S. PAVIA",{"$f":"TopN(H26:BK26,6)","v":820},{"$f":"SUM(IF(CountRaces(H26:I26)>0,1,0),IF(CountRaces(J26:O26)>0,1,0),IF(CountRaces(P26:W26)>0,1,0),IF(CountRaces(X26:AE26)>0,1,0),IF(CountRaces(AF26:AK26)>0,1,0),IF(CountRaces(AL26:AQ26)>0,1,0),IF(CountRaces(AR26:AY26)>0,1,0),IF(CountRaces(AZ26:BE26)>0,1,0),IF(CountRaces(BF26:BK26)>0,1,0))","v":2},{"$f":"CountRaces(H26:BK26)","v":2},"PREST. / PUNTI",null,null,null,null,"6.28 =",307,null,null,null,null,null,null,null,null,"3.54 =",513]
[21,"BARZON Giorgia","PV245 ATL. IRIENSE VOGHERA",{"$f":"TopN(H27:BK27,6)","v":814},{"$f":"SUM(IF(CountRaces(H27:I27)>0,1,0),IF(CountRaces(J27:O27)>0,1,0),IF(CountRaces(P27:W27)>0,1,0),IF(CountRaces(X27:AE27)>0,1,0),IF(CountRaces(AF27:AK27)>0,1,0),IF(CountRaces(AL27:AQ27)>0,1,0),IF(CountRaces(AR27:AY27)>0,1,0),IF(CountRaces(AZ27:BE27)>0,1,0),IF(CountRaces(BF27:BK27)>0,1,0))","v":1},{"$f":"CountRaces(H27:BK27)","v":2},"PREST. / PUNTI",null,null,null,null,null,null,null,null,"10.41 =",389,null,null,"25.05 =",425]
[22,"DOMENICHELLA Chiara","PV245 ATL. IRIENSE VOGHERA",{"$f":"TopN(H28:BK28,6)","v":720},{"$f":"SUM(IF(CountRaces(H28:I28)>0,1,0),IF(CountRaces(J28:O28)>0,1,0),IF(CountRaces(P28:W28)>0,1,0),IF(CountRaces(X28:AE28)>0,1,0),IF(CountRaces(AF28:AK28)>0,1,0),IF(CountRaces(AL28:AQ28)>0,1,0),IF(CountRaces(AR28:AY28)>0,1,0),IF(CountRaces(AZ28:BE28)>0,1,0),IF(CountRaces(BF28:BK28)>0,1,0))","v":1},{"$f":"CountRaces(H28:BK28)","v":1},"PREST. / PUNTI",null,null,null,null,null,null,null,null,null,null,"59.00 =",720]
[23,"AUGUSTA Rachele","PV108 C.U.S. PAVIA",{"$f":"TopN(H29:BK29,6)","v":701},{"$f":"SUM(IF(CountRaces(H29:I29)>0,1,0),IF(CountRaces(J29:O29)>0,1,0),IF(CountRaces(P29:W29)>0,1,0),IF(CountRaces(X29:AE29)>0,1,0),IF(CountRaces(AF29:AK29)>0,1,0),IF(CountRaces(AL29:AQ29)>0,1,0),IF(CountRaces(AR29:AY29)>0,1,0),IF(CountRaces(AZ29:BE29)>0,1,0),IF(CountRaces(BF29:BK29)>0,1,0))","v":1},{"$f":"CountRaces(H29:BK29)","v":1},"PREST. / PUNTI",null,null,null,null,null,null,null,null,null,null,"59.59 =",701]
[24,"FIAMBERTI Letizia Giulia","PV108 C.U.S. PAVIA",{"$f":"TopN(H30:BK30,6)","v":701},{"$f":"SUM(IF(CountRaces(H30:I30)>0,1,0),IF(CountRaces(J30:O30)>0,1,0),IF(CountRaces(P30:W30)>0,1,0),IF(CountRaces(X30:AE30)>0,1,0),IF(CountRaces(AF30:AK30)>0,1,0),IF(CountRaces(AL30:AQ30)>0,1,0),IF(CountRaces(AR30:AY30)>0,1,0),IF(CountRaces(AZ30:BE30)>0,1,0),IF(CountRaces(BF30:BK30)>0,1,0))","v":1},{"$f":"CountRaces(H30:BK30)","v":1},"PREST. / PUNTI",null,null,null,null,null,null,null,null,null,null,"59.59 =",701]
[25,"GUSBERTI Giulia Irene","PV108 C.U.S. PAVIA",{"$f":"TopN(H31:BK31,6)","v":701},{"$f":"SUM(IF(CountRaces(H31:I31)>0,1,0),IF(CountRaces(J31:O31)>0,1,0),IF(CountRaces(P31:W31)>0,1,0),IF(CountRaces(X31:AE31)>0,1,0),IF(CountRaces(AF31:AK31)>0,1,0),IF(CountRaces(AL31:AQ31)>0,1,0),IF(CountRaces(AR31:AY31)>0,1,0),IF(CountRaces(AZ31:BE31)>0,1,0),IF(CountRaces(BF31:BK31)>0,1,0))","v":1},{"$f":"CountRaces(H31:BK31)","v":1},"PREST. / PUNTI",null,null,null,null,null,null,null,null,null,null,"59.59 =",701]
[26,"ROMA Vittoria Cristina","PV108 C.U.S. PAVIA",{"$f":"TopN(H32:BK32,6)","v":701},{"$f":"SUM(IF(CountRaces(H32:I32)>0,1,0),IF(CountRaces(J32:O32)>0,1,0),IF(CountRaces(P32:W32)>0,1,0),IF(CountRaces(X32:AE32)>0,1,0),IF(CountRaces(AF32:AK32)>0,1,0),IF(CountRaces(AL32:AQ32)>0,1,0),IF(CountRaces(AR32:AY32)>0,1,0),IF(CountRaces(AZ32:BE32)>0,1,0),IF(CountRaces(BF32:BK32)>0,1,0))","v":1},{"$f":"CountRaces(H32:BK32)","v":1},"PREST. / PUNTI",null,null,null,null,null,null,null,null,null,null,"59.59 =",701]
[27,"VALDONIO Caterina","PV108 C.U.S. PAVIA",{"$f":"TopN(H33:BK33,6)","v":547},{"$f":"SUM(IF(CountRaces(H33:I33)>0,1,0),IF(CountRaces(J33:O33)>0,1,0),IF(CountRaces(P33:W33)>0,1,0),IF(CountRaces(X33:AE33)>0,1,0),IF(CountRaces(AF33:AK33)>0,1,0),IF(CountRaces(AL33:AQ33)>0,1,0),IF(CountRaces(AR33:AY33)>0,1,0),IF(CountRaces(AZ33:BE33)>0,1,0),IF(CountRaces(BF33:BK33)>0,1,0))","v":1},{"$f":"CountRaces(H33:BK33)","v":1},"PREST. / PUNTI",null,null,"12.39 =",547]
[28,"COPPOLA Gaia","PV108 C.U.S. PAVIA",{"$f":"TopN(H34:BK34,6)","v":405},{"$f":"SUM(IF(CountRaces(H34:I34)>0,1,0),IF(CountRaces(J34:O34)>0,1,0),IF(CountRaces(P34:W34)>0,1,0),IF(CountRaces(X34:AE34)>0,1,0),IF(CountRaces(AF34:AK34)>0,1,0),IF(CountRaces(AL34:AQ34)>0,1,0),IF(CountRaces(AR34:AY34)>0,1,0),IF(CountRaces(AZ34:BE34)>0,1,0),IF(CountRaces(BF34:BK34)>0,1,0))","v":1},{"$f":"CountRaces(H34:BK34)","v":1},"PREST. / PUNTI",null,null,"13.49 =",405]
[29,"TOMMASINI Irene","PV245 ATL. IRIENSE VOGHERA",{"$f":"TopN(H35:BK35,6)","v":394},{"$f":"SUM(IF(CountRaces(H35:I35)>0,1,0),IF(CountRaces(J35:O35)>0,1,0),IF(CountRaces(P35:W35)>0,1,0),IF(CountRaces(X35:AE35)>0,1,0),IF(CountRaces(AF35:AK35)>0,1,0),IF(CountRaces(AL35:AQ35)>0,1,0),IF(CountRaces(AR35:AY35)>0,1,0),IF(CountRaces(AZ35:BE35)>0,1,0),IF(CountRaces(BF35:BK35)>0,1,0))","v":1},{"$f":"CountRaces(H35:BK35)","v":1},"PREST. / PUNTI",null,null,null,null,null,null,null,null,"10.38 =",394]
[30,"LENZO Chiara","PV850 ASD GP GARLASCHESE",{"$f":"TopN(H36:BK36,6)","v":390},{"$f":"SUM(IF(CountRaces(H36:I36)>0,1,0),IF(CountRaces(J36:O36)>0,1,0),IF(CountRaces(P36:W36)>0,1,0),IF(CountRaces(X36:AE36)>0,1,0),IF(CountRaces(AF36:AK36)>0,1,0),IF(CountRaces(AL36:AQ36)>0,1,0),IF(CountRaces(AR36:AY36)>0,1,0),IF(CountRaces(AZ36:BE36)>0,1,0),IF(CountRaces(BF36:BK36)>0,1,0))","v":1},{"$f":"CountRaces(H36:BK36)","v":1},"PREST. / PUNTI",null,null,"13.61 =",390]
[null,"AZZARELLO Martina","PV108 C.U.S. PAVIA",{"$f":"TopN(H37:BK37,6)","v":0},{"$f":"SUM(IF(CountRaces(H37:I37)>0,1,0),IF(CountRaces(J37:O37)>0,1,0),IF(CountRaces(P37:W37)>0,1,0),IF(CountRaces(X37:AE37)>0,1,0),IF(CountRaces(AF37:AK37)>0,1,0),IF(CountRaces(AL37:AQ37)>0,1,0),IF(CountRaces(AR37:AY37)>0,1,0),IF(CountRaces(AZ37:BE37)>0,1,0),IF(CountRaces(BF37:BK37)>0,1,0))","v":0},{"$f":"CountRaces(H37:BK37)","v":0},"PREST. / PUNTI"]
[null,"CAMBIERI Greta","PV108 C.U.S. PAVIA",{"$f":"TopN(H38:BK38,6)","v":0},{"$f":"SUM(IF(CountRaces(H38:I38)>0,1,0),IF(CountRaces(J38:O38)>0,1,0),IF(CountRaces(P38:W38)>0,1,0),IF(CountRaces(X38:AE38)>0,1,0),IF(CountRaces(AF38:AK38)>0,1,0),IF(CountRaces(AL38:AQ38)>0,1,0),IF(CountRaces(AR38:AY38)>0,1,0),IF(CountRaces(AZ38:BE38)>0,1,0),IF(CountRaces(BF38:BK38)>0,1,0))","v":0},{"$f":"CountRaces(H38:BK38)","v":0},"PREST. / PUNTI"]
[null,"CHITTI Giada","PV421 ATLETICA CASORATE PRIMO",{"$f":"TopN(H39:BK39,6)","v":0},{"$f":"SUM(IF(CountRaces(H39:I39)>0,1,0),IF(CountRaces(J39:O39)>0,1,0),IF(CountRaces(P39:W39)>0,1,0),IF(CountRaces(X39:AE39)>0,1,0),IF(CountRaces(AF39:AK39)>0,1,0),IF(CountRaces(AL39:AQ39)>0,1,0),IF(CountRaces(AR39:AY39)>0,1,0),IF(CountRaces(AZ39:BE39)>0,1,0),IF(CountRaces(BF39:BK39)>0,1,0))","v":0},{"$f":"CountRaces(H39:BK39)","v":0},"PREST. / PUNTI"]
[null,"DI FRANCO Lucrezia","PV108 C.U.S. PAVIA",{"$f":"TopN(H40:BK40,6)","v":0},{"$f":"SUM(IF(CountRaces(H40:I40)>0,1,0),IF(CountRaces(J40:O40)>0,1,0),IF(CountRaces(P40:W40)>0,1,0),IF(CountRaces(X40:AE40)>0,1,0),IF(CountRaces(AF40:AK40)>0,1,0),IF(CountRaces(AL40:AQ40)>0,1,0),IF(CountRaces(AR40:AY40)>0,1,0),IF(CountRaces(AZ40:BE40)>0,1,0),IF(CountRaces(BF40:BK40)>0,1,0))","v":0},{"$f":"CountRaces(H40:BK40)","v":0},"PREST. / PUNTI"]
[null,"DJAMA Camilla","PV108 C.U.S. PAVIA",{"$f":"TopN(H41:BK41,6)","v":0},{"$f":"SUM(IF(CountRaces(H41:I41)>0,1,0),IF(CountRaces(J41:O41)>0,1,0),IF(CountRaces(P41:W41)>0,1,0),IF(CountRaces(X41:AE41)>0,1,0),IF(CountRaces(AF41:AK41)>0,1,0),IF(CountRaces(AL41:AQ41)>0,1,0),IF(CountRaces(AR41:AY41)>0,1,0),IF(CountRaces(AZ41:BE41)>0,1,0),IF(CountRaces(BF41:BK41)>0,1,0))","v":0},{"$f":"CountRaces(H41:BK41)","v":0},"PREST. / PUNTI"]
[null,"TINDOLINI Giulia","PV108 C.U.S. PAVIA",{"$f":"TopN(H42:BK42,6)","v":0},{"$f":"SUM(IF(CountRaces(H42:I42)>0,1,0),IF(CountRaces(J42:O42)>0,1,0),IF(CountRaces(P42:W42)>0,1,0),IF(CountRaces(X42:AE42)>0,1,0),IF(CountRaces(AF42:AK42)>0,1,0),IF(CountRaces(AL42:AQ42)>0,1,0),IF(CountRaces(AR42:AY42)>0,1,0),IF(CountRaces(AZ42:BE42)>0,1,0),IF(CountRaces(BF42:BK42)>0,1,0))","v":0},{"$f":"CountRaces(H42:BK42)","v":0},"PREST. / PUNTI"]
[null,"TRAMARIN Marta","PV108 C.U.S. PAVIA",{"$f":"TopN(H43:BK43,6)","v":0},{"$f":"SUM(IF(CountRaces(H43:I43)>0,1,0),IF(CountRaces(J43:O43)>0,1,0),IF(CountRaces(P43:W43)>0,1,0),IF(CountRaces(X43:AE43)>0,1,0),IF(CountRaces(AF43:AK43)>0,1,0),IF(CountRaces(AL43:AQ43)>0,1,0),IF(CountRaces(AR43:AY43)>0,1,0),IF(CountRaces(AZ43:BE43)>0,1,0),IF(CountRaces(BF43:BK43)>0,1,0))","v":0},{"$f":"CountRaces(H43:BK43)","v":0},"PREST. / PUNTI"]
[null,null,null,{"$f":"TopN(H44:BK44,6)","v":0},{"$f":"SUM(IF(CountRaces(H44:I44)>0,1,0),IF(CountRaces(J44:O44)>0,1,0),IF(CountRaces(P44:W44)>0,1,0),IF(CountRaces(X44:AE44)>0,1,0),IF(CountRaces(AF44:AK44)>0,1,0),IF(CountRaces(AL44:AQ44)>0,1,0),IF(CountRaces(AR44:AY44)>0,1,0),IF(CountRaces(AZ44:BE44)>0,1,0),IF(CountRaces(BF44:BK44)>0,1,0))","v":0},{"$f":"CountRaces(H44:BK44)","v":0},"PREST. / PUNTI"]

{"sheet":"RAGAZZI","index":1,"n_rows":33,"n_cols":62,"rows_kept":33,"cut":false,"hidden":false,"merged":[[5,61,5,62],[5,39,5,40],[5,41,5,42],[5,43,5,44],[5,45,5,46],[5,47,5,48],[5,49,5,50],[5,51,5,52],[5,53,5,54],[5,55,5,56],[5,57,5,58],[5,59,5,60],[5,7,5,8],[5,9,5,10],[5,11,5,12],[5,37,5,38],[5,15,5,16],[5,17,5,18],[5,19,5,20],[5,21,5,22],[5,23,5,24],[5,25,5,26],[5,27,5,28],[5,29,5,30],[5,31,5,32],[5,33,5,34],[5,35,5,36],[5,13,5,14],[4,21,4,28],[4,29,4,34],[4,35,4,42],[4,43,4,50],[4,51,4,56],[4,57,4,62],[3,29,3,34],[3,35,3,42],[3,43,3,50],[3,51,3,56],[3,57,3,62],[4,1,4,2],[4,3,4,5],[4,7,4,8],[4,9,4,12],[4,13,4,20],[3,21,3,28],[2,0,2,5],[3,0,3,5],[3,7,3,8],[3,9,3,12],[3,13,3,20]]}
[]
[]
["GRAN PREMIO GIOVANILE FIDAL PAVIA 2025 RAGAZZI",null,null,null,null,null,null,null,null,null,null,null,null,null,null,null,null,null,null,null,null,null,null,null,null,null,null,null,null,null,null,null,null,null,null,null,null,null,null,null,null,null,null,"2000* = punteggio tabella Cadette"]
["CLASSIFICA DEFINITIVA aggiornata al 13/04/2025 da GRETA MARCHESE",null,null,null,null,null,"PROVA G.P.","1° PROVA G.P.",null,"2° PROVA G.P.",null,null,null,"3° PROVA G.P.",null,null,null,null,null,null,null,"4° PROVA G.P.",null,null,null,null,null,null,null,"5° PROVA G.P.",null,null,null,null,null,"6° PROVA G.P.",null,null,null,null,null,null,null,"7° PROVA G.P.",null,null,null,null,null,null,null,"8° PROVA G.P.",null,null,null,null,null,"9° PROVA G.P."]
[null,"Per segnalazioni di refusi contattare: cp.pavia@fidal.it",null,null,null,null,"MANIFESTAZIONE","SABATO 05/04\nVOGHERA\nXXXVI° MIGLIO CITTA' DI VOGHERA  \nI° RIUNIONE PROVINCIALE RAG / CAD 2025",null,"SABATO 12/04 PAVIA\nIX° MEMORIAL OMERO CAIELLO\nII° RIUNIONE PROVINCIALE RAG / CAD 2025",null,null,null,"DOMENICA 13/04 VIGEVANO\nIII° RIUNIONE PROVINCIALE RAG / CAD 2025",null,null,null,null,null,null,null,"GIOVEDI' 01/05 PAVIA\nXXVIII° MEETING DELLA LIBERAZIONE - MEMORIAL PAOLO MAGGIONI\nXXI° MEETING FESTA DELLA REPUBBLICA\nV° RIUNIONE PROVINCIALE RAG / CAD 2025",null,null,null,null,null,null,null,"SABATO 03/05 VOGHERA\nMEETING DI PRIMAVERA\nVI° RIUNIONE PROVINCIALE RAG / CAD 2025\nI° GIORNATA CAMPIONATI PROVINCIALI CAD",null,null,null,null,null,"GIOVEDI' 15/05 PAVIA\nVII° RIUNIONE PROVINCIALE RAG / CAD 2025\nII° GIORNATA CAMPIONATI PROVINCIALI RAG / CAD",null,null,null,null,null,null,null,"GIOVEDI' 22/05 VIGEVANO\nVIII° RIUNIONE PROVINCIALE RAG / CAD 2025\nIII° GIORNATA CAMPIONATI PROVINCIALI RAG / CAD",null,null,null,null,null,null,null,"DOMENICA 01/06 CASORATE PRIMO\nIX° MEMORIAL LAURA FERRARIO\nIX° RIUNIONE PROVINCIALE RAG / CAD 2025\nIV° GIORNATA CAMPIONATI PROVINCIALI RAG / CAD \nCAMPIONATI PROVINCIALI DI PROVE MULTIPLE RAG / CAD",null,null,null,null,null,"SABATO 04/10 VOGHERA\nMEETING D'AUTUNNO\nXII° RIUNIONE PROVINCIALE RAG / CAD 2025"]
["POS.","ATLETA","SOCIETA'","TOT.","N° MANIF.","N° GARE","GARA","1000 MT.",null,"60 HS",null,"PESO",null,"60 MT.",null,"4 X 100 MT.",null,"VORTEX",null,"LUNGO",null,"60 MT.",null,"600 MT.",null,"LUNGO",null,"PESO",null,"60 MT.",null,"1000 MT.",null,"LUNGO",null,"60 HS",null,"LUNGO",null,"ALTO",null,"MARCIA 2 KM",null,"60 MT.",null,"1000 MT.",null,"LUNGO",null,"PESO",null,60,null,"LUNGO",null,"VORTEX",null,60,null,600,null,"LUNGO"]
[1,"PEROTTI Elia","PV108 C.U.S. PAVIA",{"$f":"TopN(H7:BK7,6)","v":2369},{"$f":"SUM(IF(CountRaces(H7:I7)>0,1,0),IF(CountRaces(J7:M7)>0,1,0),IF(CountRaces(N7:U7)>0,1,0),IF(CountRaces(V7:AC7)>0,1,0),IF(CountRaces(AD7:AI7)>0,1,0),IF(CountRaces(AJ7:AQ7)>0,1,0),IF(CountRaces(AR7:AY7)>0,1,0),IF(CountRaces(AZ7:BE7)>0,1,0),IF(CountRaces(BF7:BK7)>0,1,0))","v":3},{"$f":"CountRaces(H7:BK7)","v":4},"PREST. / PUNTI","3:14.50 =",622,null,null,"8.77 =",421,null,null,"54.48 =",655,null,null,"4.65 =",671]
[2,"BRAVACCINO Raffaele","PV108 C.U.S. PAVIA",{"$f":"TopN(H8:BK8,6)","v":2048},{"$f":"SUM(IF(CountRaces(H8:I8)>0,1,0),IF(CountRaces(J8:M8)>0,1,0),IF(CountRaces(N8:U8)>0,1,0),IF(CountRaces(V8:AC8)>0,1,0),IF(CountRaces(AD8:AI8)>0,1,0),IF(CountRaces(AJ8:AQ8)>0,1,0),IF(CountRaces(AR8:AY8)>0,1,0),IF(CountRaces(AZ8:BE8)>0,1,0),IF(CountRaces(BF8:BK8)>0,1,0))","v":2},{"$f":"CountRaces(H8:BK8)","v":3},"PREST. / PUNTI",null,null,null,null,"12.62 =",714,"8.15 =",679,"54.48 =",655]
[3,"SPADINI Davide","PV108 C.U.S. PAVIA",{"$f":"TopN(H9:BK9,6)","v":1971},{"$f":"SUM(IF(CountRaces(H9:I9)>0,1,0),IF(CountRaces(J9:M9)>0,1,0),IF(CountRaces(N9:U9)>0,1,0),IF(CountRaces(V9:AC9)>0,1,0),IF(CountRaces(AD9:AI9)>0,1,0),IF(CountRaces(AJ9:AQ9)>0,1,0),IF(CountRaces(AR9:AY9)>0,1,0),IF(CountRaces(AZ9:BE9)>0,1,0),IF(CountRaces(BF9:BK9)>0,1,0))","v":2},{"$f":"CountRaces(H9:BK9)","v":4},"PREST. / PUNTI",null,null,"11.03 =",571,"9.43 =",472,"9.33 =",344,null,null,null,null,"4.25 =",584]
[4,"CICOGNINI Mattia","PV108 C.U.S. PAVIA",{"$f":"TopN(H10:BK10,6)","v":1560},{"$f":"SUM(IF(CountRaces(H10:I10)>0,1,0),IF(CountRaces(J10:M10)>0,1,0),IF(CountRaces(N10:U10)>0,1,0),IF(CountRaces(V10:AC10)>0,1,0),IF(CountRaces(AD10:AI10)>0,1,0),IF(CountRaces(AJ10:AQ10)>0,1,0),IF(CountRaces(AR10:AY10)>0,1,0),IF(CountRaces(AZ10:BE10)>0,1,0),IF(CountRaces(BF10:BK10)>0,1,0))","v":2},{"$f":"CountRaces(H10:BK10)","v":4},"PREST. / PUNTI",null,null,"11.84 =",449,"5.49 =",161,"9.06 =",411,null,null,null,null,"4.04 =",539]
[5,"NICHELE Matteo","PV108 C.U.S. PAVIA",{"$f":"TopN(H11:BK11,6)","v":1175},{"$f":"SUM(IF(CountRaces(H11:I11)>0,1,0),IF(CountRaces(J11:M11)>0,1,0),IF(CountRaces(N11:U11)>0,1,0),IF(CountRaces(V11:AC11)>0,1,0),IF(CountRaces(AD11:AI11)>0,1,0),IF(CountRaces(AJ11:AQ11)>0,1,0),IF(CountRaces(AR11:AY11)>0,1,0),IF(CountRaces(AZ11:BE11)>0,1,0),IF(CountRaces(BF11:BK11)>0,1,0))","v":1},{"$f":"CountRaces(H11:BK11)","v":2},"PREST. / PUNTI",null,null,null,null,null,null,null,null,"54.48 =",655,null,null,"3.95 =",520]
[6,"ALESSANDRO Giacomo Federico","PV108 C.U.S. PAVIA",{"$f":"TopN(H12:BK12,6)","v":1113},{"$f":"SUM(IF(CountRaces(H12:I12)>0,1,0),IF(CountRaces(J12:M12)>0,1,0),IF(CountRaces(N12:U12)>0,1,0),IF(CountRaces(V12:AC12)>0,1,0),IF(CountRaces(AD12:AI12)>0,1,0),IF(CountRaces(AJ12:AQ12)>0,1,0),IF(CountRaces(AR12:AY12)>0,1,0),IF(CountRaces(AZ12:BE12)>0,1,0),IF(CountRaces(BF12:BK12)>0,1,0))","v":2},{"$f":"CountRaces(H12:BK12)","v":3},"PREST. / PUNTI","3:40.92 =",323,null,null,null,null,"9.67 =",266,null,null,null,null,"3.97 =",524]
[7,"INSANA Cristian","PV108 C.U.S. PAVIA",{"$f":"TopN(H13:BK13,6)","v":1053},{"$f":"SUM(IF(CountRaces(H13:I13)>0,1,0),IF(CountRaces(J13:M13)>0,1,0),IF(CountRaces(N13:U13)>0,1,0),IF(CountRaces(V13:AC13)>0,1,0),IF(CountRaces(AD13:AI13)>0,1,0),IF(CountRaces(AJ13:AQ13)>0,1,0),IF(CountRaces(AR13:AY13)>0,1,0),IF(CountRaces(AZ13:BE13)>0,1,0),IF(CountRaces(BF13:BK13)>0,1,0))","v":1},{"$f":"CountRaces(H13:BK13)","v":2},"PREST. / PUNTI",null,null,null,null,null,null,"9.11 =",398,"54.48 =",655]
[8,"BETTONTE Riccardo","PV108 C.U.S. PAVIA",{"$f":"TopN(H14:BK14,6)","v":922},{"$f":"SUM(IF(CountRaces(H14:I14)>0,1,0),IF(CountRaces(J14:M14)>0,1,0),IF(CountRaces(N14:U14)>0,1,0),IF(CountRaces(V14:AC14)>0,1,0),IF(CountRaces(AD14:AI14)>0,1,0),IF(CountRaces(AJ14:AQ14)>0,1,0),IF(CountRaces(AR14:AY14)>0,1,0),IF(CountRaces(AZ14:BE14)>0,1,0),IF(CountRaces(BF14:BK14)>0,1,0))","v":1},{"$f":"CountRaces(H14:BK14)","v":2},"PREST. / PUNTI",null,null,null,null,null,null,null,null,"1:02.96 =",375,null,null,"4.08 =",547]
[9,"BERGAMI Alessandro","PV108 C.U.S. PAVIA",{"$f":"TopN(H15:BK15,6)","v":858},{"$f":"SUM(IF(CountRaces(H15:I15)>0,1,0),IF(CountRaces(J15:M15)>0,1,0),IF(CountRaces(N15:U15)>0,1,0),IF(CountRaces(V15:AC15)>0,1,0),IF(CountRaces(AD15:AI15)>0,1,0),IF(CountRaces(AJ15:AQ15)>0,1,0),IF(CountRaces(AR15:AY15)>0,1,0),IF(CountRaces(AZ15:BE15)>0,1,0),IF(CountRaces(BF15:BK15)>0,1,0))","v":1},{"$f":"CountRaces(H15:BK15)","v":2},"PREST. / PUNTI",null,null,null,null,null,null,null,null,null,null,"25.55 =",302,"4.12 =",556]
[10,"RUDELLO Edoardo","PV412 LA PODISTICA ROBBIESE",{"$f":"TopN(H16:BK16,6)","v":742},{"$f":"SUM(IF(CountRaces(H16:I16)>0,1,0),IF(CountRaces(J16:M16)>0,1,0),IF(CountRaces(N16:U16)>0,1,0),IF(CountRaces(V16:AC16)>0,1,0),IF(CountRaces(AD16:AI16)>0,1,0),IF(CountRaces(AJ16:AQ16)>0,1,0),IF(CountRaces(AR16:AY16)>0,1,0),IF(CountRaces(AZ16:BE16)>0,1,0),IF(CountRaces(BF16:BK16)>0,1,0))","v":1},{"$f":"CountRaces(H16:BK16)","v":2},"PREST. / PUNTI",null,null,null,null,null,null,"9.58 =",286,null,null,null,null,"3.65 =",456]
[11,"FILIGHERA Paolo Tommaso","PV108 C.U.S. PAVIA",{"$f":"TopN(H17:BK17,6)","v":709},{"$f":"SUM(IF(CountRaces(H17:I17)>0,1,0),IF(CountRaces(J17:M17)>0,1,0),IF(CountRaces(N17:U17)>0,1,0),IF(CountRaces(V17:AC17)>0,1,0),IF(CountRaces(AD17:AI17)>0,1,0),IF(CountRaces(AJ17:AQ17)>0,1,0),IF(CountRaces(AR17:AY17)>0,1,0),IF(CountRaces(AZ17:BE17)>0,1,0),IF(CountRaces(BF17:BK17)>0,1,0))","v":1},{"$f":"CountRaces(H17:BK17)","v":2},"PREST. / PUNTI",null,null,null,null,null,null,null,null,"1:02.96 =",375,null,null,"3.06 =",334]
[12,"BIANDRATE Filippo","PV108 C.U.S. PAVIA",{"$f":"TopN(H18:BK18,6)","v":645},{"$f":"SUM(IF(CountRaces(H18:I18)>0,1,0),IF(CountRaces(J18:M18)>0,1,0),IF(CountRaces(N18:U18)>0,1,0),IF(CountRaces(V18:AC18)>0,1,0),IF(CountRaces(AD18:AI18)>0,1,0),IF(CountRaces(AJ18:AQ18)>0,1,0),IF(CountRaces(AR18:AY18)>0,1,0),IF(CountRaces(AZ18:BE18)>0,1,0),IF(CountRaces(BF18:BK18)>0,1,0))","v":1},{"$f":"CountRaces(H18:BK18)","v":2},"PREST. / PUNTI",null,null,null,null,null,null,"9.89 =",220,null,null,null,null,"3.50 =",425]
[13,"ALBANO Leonardo","PV108 C.U.S. PAVIA",{"$f":"TopN(H19:BK19,6)","v":489},{"$f":"SUM(IF(CountRaces(H19:I19)>0,1,0),IF(CountRaces(J19:M19)>0,1,0),IF(CountRaces(N19:U19)>0,1,0),IF(CountRaces(V19:AC19)>0,1,0),IF(CountRaces(AD19:AI19)>0,1,0),IF(CountRaces(AJ19:AQ19)>0,1,0),IF(CountRaces(AR19:AY19)>0,1,0),IF(CountRaces(AZ19:BE19)>0,1,0),IF(CountRaces(BF19:BK19)>0,1,0))","v":1},{"$f":"CountRaces(H19:BK19)","v":1},"PREST. / PUNTI",null,null,"11.51 =",489]
[14,"CASERIO Edoardo","PV108 C.U.S. PAVIA",{"$f":"TopN(H20:BK20,6)","v":481},{"$f":"SUM(IF(CountRaces(H20:I20)>0,1,0),IF(CountRaces(J20:M20)>0,1,0),IF(CountRaces(N20:U20)>0,1,0),IF(CountRaces(V20:AC20)>0,1,0),IF(CountRaces(AD20:AI20)>0,1,0),IF(CountRaces(AJ20:AQ20)>0,1,0),IF(CountRaces(AR20:AY20)>0,1,0),IF(CountRaces(AZ20:BE20)>0,1,0),IF(CountRaces(BF20:BK20)>0,1,0))","v":1},{"$f":"CountRaces(H20:BK20)","v":2},"PREST. / PUNTI",null,null,null,null,null,null,"10.54 =",106,"1:02.96 =",375]
[15,"GATTI Giacomo","PV245 ATLETICA IRIENSE VOGHERA",{"$f":"TopN(H21:BK21,6)","v":480},{"$f":"SUM(IF(CountRaces(H21:I21)>0,1,0),IF(CountRaces(J21:M21)>0,1,0),IF(CountRaces(N21:U21)>0,1,0),IF(CountRaces(V21:AC21)>0,1,0),IF(CountRaces(AD21:AI21)>0,1,0),IF(CountRaces(AJ21:AQ21)>0,1,0),IF(CountRaces(AR21:AY21)>0,1,0),IF(CountRaces(AZ21:BE21)>0,1,0),IF(CountRaces(BF21:BK21)>0,1,0))","v":1},{"$f":"CountRaces(H21:BK21)","v":2},"PREST. / PUNTI",null,null,null,null,null,null,"10.34 =",138,null,null,null,null,"3.10 =",342]
[16,"KOUITI Nabil","PV245 ATLETICA IRIENSE VOGHERA",{"$f":"TopN(H22:BK22,6)","v":394},{"$f":"SUM(IF(CountRaces(H22:I22)>0,1,0),IF(CountRaces(J22:M22)>0,1,0),IF(CountRaces(N22:U22)>0,1,0),IF(CountRaces(V22:AC22)>0,1,0),IF(CountRaces(AD22:AI22)>0,1,0),IF(CountRaces(AJ22:AQ22)>0,1,0),IF(CountRaces(AR22:AY22)>0,1,0),IF(CountRaces(AZ22:BE22)>0,1,0),IF(CountRaces(BF22:BK22)>0,1,0))","v":1},{"$f":"CountRaces(H22:BK22)","v":2},"PREST. / PUNTI",null,null,null,null,null,null,"10.41 =",126,null,null,"23.37 =",268]
[17,"SALA Franco Alessandro","PV108 C.U.S. PAVIA",{"$f":"TopN(H23:BK23,6)","v":375},{"$f":"SUM(IF(CountRaces(H23:I23)>0,1,0),IF(CountRaces(J23:M23)>0,1,0),IF(CountRaces(N23:U23)>0,1,0),IF(CountRaces(V23:AC23)>0,1,0),IF(CountRaces(AD23:AI23)>0,1,0),IF(CountRaces(AJ23:AQ23)>0,1,0),IF(CountRaces(AR23:AY23)>0,1,0),IF(CountRaces(AZ23:BE23)>0,1,0),IF(CountRaces(BF23:BK23)>0,1,0))","v":1},{"$f":"CountRaces(H23:BK23)","v":1},"PREST. / PUNTI",null,null,null,null,null,null,null,null,"1:02.96 =",375]
[18,"MASCHERPA Niccolò","PV110 ATLETICA CENTO TORRI",{"$f":"TopN(H24:BK24,6)","v":214},{"$f":"SUM(IF(CountRaces(H24:I24)>0,1,0),IF(CountRaces(J24:M24)>0,1,0),IF(CountRaces(N24:U24)>0,1,0),IF(CountRaces(V24:AC24)>0,1,0),IF(CountRaces(AD24:AI24)>0,1,0),IF(CountRaces(AJ24:AQ24)>0,1,0),IF(CountRaces(AR24:AY24)>0,1,0),IF(CountRaces(AZ24:BE24)>0,1,0),IF(CountRaces(BF24:BK24)>0,1,0))","v":1},{"$f":"CountRaces(H24:BK24)","v":1},"PREST. / PUNTI","3:52.93 =",214]
[19,"BRUGNA Filippo","PV108 C.U.S. PAVIA",{"$f":"TopN(H25:BK25,6)","v":208},{"$f":"SUM(IF(CountRaces(H25:I25)>0,1,0),IF(CountRaces(J25:M25)>0,1,0),IF(CountRaces(N25:U25)>0,1,0),IF(CountRaces(V25:AC25)>0,1,0),IF(CountRaces(AD25:AI25)>0,1,0),IF(CountRaces(AJ25:AQ25)>0,1,0),IF(CountRaces(AR25:AY25)>0,1,0),IF(CountRaces(AZ25:BE25)>0,1,0),IF(CountRaces(BF25:BK25)>0,1,0))","v":1},{"$f":"CountRaces(H25:BK25)","v":1},"PREST. / PUNTI",null,null,null,null,"6.08 =",208]
[20,"SINANI Rajan","PV108 C.U.S. PAVIA",{"$f":"TopN(H26:BK26,6)","v":181},{"$f":"SUM(IF(CountRaces(H26:I26)>0,1,0),IF(CountRaces(J26:M26)>0,1,0),IF(CountRaces(N26:U26)>0,1,0),IF(CountRaces(V26:AC26)>0,1,0),IF(CountRaces(AD26:AI26)>0,1,0),IF(CountRaces(AJ26:AQ26)>0,1,0),IF(CountRaces(AR26:AY26)>0,1,0),IF(CountRaces(AZ26:BE26)>0,1,0),IF(CountRaces(BF26:BK26)>0,1,0))","v":1},{"$f":"CountRaces(H26:BK26)","v":1},"PREST. / PUNTI",null,null,null,null,null,null,null,null,null,null,null,null,"2.29 =",181]
[null,"BORSA Edoardo","PV108 C.U.S. PAVIA",{"$f":"TopN(H27:BK27,6)","v":0},{"$f":"SUM(IF(CountRaces(H27:I27)>0,1,0),IF(CountRaces(J27:M27)>0,1,0),IF(CountRaces(N27:U27)>0,1,0),IF(CountRaces(V27:AC27)>0,1,0),IF(CountRaces(AD27:AI27)>0,1,0),IF(CountRaces(AJ27:AQ27)>0,1,0),IF(CountRaces(AR27:AY27)>0,1,0),IF(CountRaces(AZ27:BE27)>0,1,0),IF(CountRaces(BF27:BK27)>0,1,0))","v":0},{"$f":"CountRaces(H27:BK27)","v":0},"PREST. / PUNTI"]
[null,"CAVARRETTA Federico","PV412 LA PODISTICA ROBBIESE",{"$f":"TopN(H28:BK28,6)","v":0},{"$f":"SUM(IF(CountRaces(H28:I28)>0,1,0),IF(CountRaces(J28:M28)>0,1,0),IF(CountRaces(N28:U28)>0,1,0),IF(CountRaces(V28:AC28)>0,1,0),IF(CountRaces(AD28:AI28)>0,1,0),IF(CountRaces(AJ28:AQ28)>0,1,0),IF(CountRaces(AR28:AY28)>0,1,0),IF(CountRaces(AZ28:BE28)>0,1,0),IF(CountRaces(BF28:BK28)>0,1,0))","v":0},{"$f":"CountRaces(H28:BK28)","v":0},"PREST. / PUNTI"]
[null,"DEMARTIS Riccardo","PV108 C.U.S. PAVIA",{"$f":"TopN(H29:BK29,6)","v":0},{"$f":"SUM(IF(CountRaces(H29:I29)>0,1,0),IF(CountRaces(J29:M29)>0,1,0),IF(CountRaces(N29:U29)>0,1,0),IF(CountRaces(V29:AC29)>0,1,0),IF(CountRaces(AD29:AI29)>0,1,0),IF(CountRaces(AJ29:AQ29)>0,1,0),IF(CountRaces(AR29:AY29)>0,1,0),IF(CountRaces(AZ29:BE29)>0,1,0),IF(CountRaces(BF29:BK29)>0,1,0))","v":0},{"$f":"CountRaces(H29:BK29)","v":0},"PREST. / PUNTI"]
[null,"MINERVA Alessandro Giovanni","PV108 C.U.S. PAVIA",{"$f":"TopN(H30:BK30,6)","v":0},{"$f":"SUM(IF(CountRaces(H30:I30)>0,1,0),IF(CountRaces(J30:M30)>0,1,0),IF(CountRaces(N30:U30)>0,1,0),IF(CountRaces(V30:AC30)>0,1,0),IF(CountRaces(AD30:AI30)>0,1,0),IF(CountRaces(AJ30:AQ30)>0,1,0),IF(CountRaces(AR30:AY30)>0,1,0),IF(CountRaces(AZ30:BE30)>0,1,0),IF(CountRaces(BF30:BK30)>0,1,0))","v":0},{"$f":"CountRaces(H30:BK30)","v":0},"PREST. / PUNTI"]
[null,"MONACO Befikir","PV108 C.U.S. PAVIA",{"$f":"TopN(H31:BK31,6)","v":0},{"$f":"SUM(IF(CountRaces(H31:I31)>0,1,0),IF(CountRaces(J31:M31)>0,1,0),IF(CountRaces(N31:U31)>0,1,0),IF(CountRaces(V31:AC31)>0,1,0),IF(CountRaces(AD31:AI31)>0,1,0),IF(CountRaces(AJ31:AQ31)>0,1,0),IF(CountRaces(AR31:AY31)>0,1,0),IF(CountRaces(AZ31:BE31)>0,1,0),IF(CountRaces(BF31:BK31)>0,1,0))","v":0},{"$f":"CountRaces(H31:BK31)","v":0},"PREST. / PUNTI"]
[null,"TARANTOLA Christian","PV108 C.U.S. PAVIA",{"$f":"TopN(H32:BK32,6)","v":0},{"$f":"SUM(IF(CountRaces(H32:I32)>0,1,0),IF(CountRaces(J32:M32)>0,1,0),IF(CountRaces(N32:U32)>0,1,0),IF(CountRaces(V32:AC32)>0,1,0),IF(CountRaces(AD32:AI32)>0,1,0),IF(CountRaces(AJ32:AQ32)>0,1,0),IF(CountRaces(AR32:AY32)>0,1,0),IF(CountRaces(AZ32:BE32)>0,1,0),IF(CountRaces(BF32:BK32)>0,1,0))","v":0},{"$f":"CountRaces(H32:BK32)","v":0},"PREST. / PUNTI"]
[null,"VERCESI Pietro","PV108 C.U.S. PAVIA",{"$f":"TopN(H33:BK33,6)","v":0},{"$f":"SUM(IF(CountRaces(H33:I33)>0,1,0),IF(CountRaces(J33:M33)>0,1,0),IF(CountRaces(N33:U33)>0,1,0),IF(CountRaces(V33:AC33)>0,1,0),IF(CountRaces(AD33:AI33)>0,1,0),IF(CountRaces(AJ33:AQ33)>0,1,0),IF(CountRaces(AR33:AY33)>0,1,0),IF(CountRaces(AZ33:BE33)>0,1,0),IF(CountRaces(BF33:BK33)>0,1,0))","v":0},{"$f":"CountRaces(H33:BK33)","v":0},"PREST. / PUNTI"]

{"sheet":"CADETTE","index":2,"n_rows":56,"n_cols":68,"rows_kept":56,"cut":false,"hidden":false,"merged":[[6,25,6,26],[6,71,6,72],[6,49,6,50],[6,51,6,52],[6,53,6,54],[6,55,6,56],[6,57,6,58],[6,59,6,60],[6,61,6,62],[6,63,6,64],[6,65,6,66],[6,67,6,68],[6,69,6,70],[6,9,6,10],[6,13,6,14],[6,15,6,16],[6,19,6,20],[6,47,6,48],[6,23,6,24],[6,27,6,28],[6,29,6,30],[6,31,6,32],[6,33,6,34],[6,35,6,36],[6,37,6,38],[6,39,6,40],[6,41,6,42],[6,43,6,44],[6,45,6,46],[5,61,5,66],[5,67,5,72],[4,39,4,44],[4,45,4,52],[4,53,4,60],[4,61,4,66],[4,67,4,72],[5,39,5,44],[5,45,5,52],[5,53,5,60],[4,31,4,38],[6,11,6,12],[6,17,6,18],[3,0,3,5],[4,0,4,5],[4,7,4,8],[4,9,4,20],[4,21,4,30],[5,1,5,2],[5,3,5,5],[5,7,5,8],[5,9,5,20],[5,21,5,30],[6,21,6,22],[5,31,5,38],[6,7,6,8]]}
[]
[]
[]
["GRAN PREMIO GIOVANILE FIDAL PAVIA 2025 CADETTE",null,null,null,null,null,null,null,null,null,null,null,null,null,null,null,null,null,null,null,null,null,null,null,null,null,null,null,null,null,null,null,null,null,null,null,null,null,null,null,null,null,null,null,null,null,null,null,null,null,null,null,null,"2000* = punteggio tabella Cadette"]
["CLASSIFICA DEFINITIVA aggiornata al 13/04/2025 da GRETA MARCHESE",null,null,null,null,null,"PROVA G.P.","1° PROVA G.P.",null,"2° PROVA G.P.",null,null,null,null,null,null,null,null,null,null,null,"3° PROVA G.P.",null,null,null,null,null,null,null,null,null,"4° PROVA G.P.",null,null,null,null,null,null,null,"5° PROVA G.P.",null,null,null,null,null,"6° PROVA G.P.",null,null,null,null,null,null,null,"7° PROVA G.P.",null,null,null,null,null,null,null,"8° PROVA G.P.",null,null,null,null,null,"9° PROVA G.P."]
[null,"Per segnalazioni di refusi contattare: cp.pavia@fidal.it",null,null,null,null,"MANIFESTAZIONE","SABATO 05/04\nVOGHERA\nXXXVI° MIGLIO CITTA' DI VOGHERA  \nI° RIUNIONE PROVINCIALE RAG / CAD 2025",null,"SABATO 12/04 PAVIA\nIX° MEMORIAL OMERO CAIELLO\nII° RIUNIONE PROVINCIALE RAG / CAD 2025",null,null,null,null,null,null,null,null,null,null,null,"DOMENICA 13/04 VIGEVANO\nIII° RIUNIONE PROVINCIALE RAG / CAD 2025",null,null,null,null,null,null,null,null,null,"GIOVEDI' 01/05 PAVIA\nXXVIII° MEETING DELLA LIBERAZIONE - MEMORIAL PAOLO MAGGIONI\nXXI° MEETING FESTA DELLA REPUBBLICA\nV° RIUNIONE PROVINCIALE RAG / CAD 2025",null,null,null,null,null,null,null,"SABATO 03/05 VOGHERA\nMEETING DI PRIMAVERA\nVI° RIUNIONE PROVINCIALE RAG / CAD 2025\nI° GIORNATA CAMPIONATI PROVINCIALI CAD",null,null,null,null,null,"GIOVEDI' 15/05 PAVIA\nVII° RIUNIONE PROVINCIALE RAG / CAD 2025\nII° GIORNATA CAMPIONATI PROVINCIALI RAG / CAD",null,null,null,null,null,null,null,"GIOVEDI' 22/05 VIGEVANO\nVIII° RIUNIONE PROVINCIALE RAG / CAD 2025\nIII° GIORNATA CAMPIONATI PROVINCIALI RAG / CAD",null,null,null,null,null,null,null,"DOMENICA 01/06 CASORATE PRIMO\nIX° MEMORIAL LAURA FERRARIO\nIX° RIUNIONE PROVINCIALE RAG / CAD 2025\nIV° GIORNATA CAMPIONATI PROVINCIALI RAG / CAD \nCAMPIONATI PROVINCIALI DI PROVE MULTIPLE RAG / CAD",null,null,null,null,null,"SABATO 04/10 VOGHERA\nMEETING D'AUTUNNO\nXII° RIUNIONE PROVINCIALE RAG / CAD 2025"]
["POS.","ATLETA","SOCIETA'","TOT.","N° MANIF.","N° GARE","GARA","1000 MT.",null,"150 MT.",null,"300 MT.",null,"1000 MT.",null,"LUNGO",null,"DISCO",null,"MARTELLO",null,"80 MT.",null,"4 X 100 MT.",null,"1200 ST",null,"ALTO",null,"PESO"]
[1,"ABATE Alice","PV108 C.U.S. PAVIA",{"$f":"TopN(H8:BU8,6)","v":2938},{"$f":"SUM(IF(CountRaces(H8:I8)>0,1,0),IF(CountRaces(J8:U8)>0,1,0),IF(CountRaces(V8:AE8)>0,1,0),IF(CountRaces(AF8:AM8)>0,1,0),IF(CountRaces(AN8:AS8)>0,1,0),IF(CountRaces(AT8:BA8)>0,1,0),IF(CountRaces(BB8:BI8)>0,1,0),IF(CountRaces(BJ8:BO8)>0,1,0),IF(CountRaces(BP8:BU8)>0,1,0))","v":2},{"$f":"CountRaces(H8:BU8)","v":4},"PREST. / PUNTI",null,null,"20.94 =",691,null,null,null,null,"4.27 =",579,null,null,null,null,null,null,"50.30 =",1010,null,null,"1.35 =",658]
[2,"CATENA Stella","PV108 C.U.S. PAVIA",{"$f":"TopN(H9:BU9,6)","v":2741},{"$f":"SUM(IF(CountRaces(H9:I9)>0,1,0),IF(CountRaces(J9:U9)>0,1,0),IF(CountRaces(V9:AE9)>0,1,0),IF(CountRaces(AF9:AM9)>0,1,0),IF(CountRaces(AN9:AS9)>0,1,0),IF(CountRaces(AT9:BA9)>0,1,0),IF(CountRaces(BB9:BI9)>0,1,0),IF(CountRaces(BJ9:BO9)>0,1,0),IF(CountRaces(BP9:BU9)>0,1,0))","v":2},{"$f":"CountRaces(H9:BU9)","v":3},"PREST. / PUNTI",null,null,"19.43 =",895,null,null,null,null,null,null,null,null,null,null,"10.49 =",836,"50.30 =",1010]
[3,"CARESANA Laura","PV108 C.U.S. PAVIA",{"$f":"TopN(H10:BU10,6)","v":2737},{"$f":"SUM(IF(CountRaces(H10:I10)>0,1,0),IF(CountRaces(J10:U10)>0,1,0),IF(CountRaces(V10:AE10)>0,1,0),IF(CountRaces(AF10:AM10)>0,1,0),IF(CountRaces(AN10:AS10)>0,1,0),IF(CountRaces(AT10:BA10)>0,1,0),IF(CountRaces(BB10:BI10)>0,1,0),IF(CountRaces(BJ10:BO10)>0,1,0),IF(CountRaces(BP10:BU10)>0,1,0))","v":2},{"$f":"CountRaces(H10:BU10)","v":3},"PREST. / PUNTI",null,null,null,null,null,null,null,null,"4.96 =",801,null,null,null,null,"10.22 =",926,"50.30 =",1010]
[4,"DE FILIPPI Federica","PV108 C.U.S. PAVIA",{"$f":"TopN(H11:BU11,6)","v":2483},{"$f":"SUM(IF(CountRaces(H11:I11)>0,1,0),IF(CountRaces(J11:U11)>0,1,0),IF(CountRaces(V11:AE11)>0,1,0),IF(CountRaces(AF11:AM11)>0,1,0),IF(CountRaces(AN11:AS11)>0,1,0),IF(CountRaces(AT11:BA11)>0,1,0),IF(CountRaces(BB11:BI11)>0,1,0),IF(CountRaces(BJ11:BO11)>0,1,0),IF(CountRaces(BP11:BU11)>0,1,0))","v":2},{"$f":"CountRaces(H11:BU11)","v":3},"PREST. / PUNTI",null,null,"20.14 =",796,null,null,null,null,null,null,null,null,null,null,"11.02 =",677,"50.30 =",1010]
[5,"DALMIGLIO Viola","PV108 C.U.S. PAVIA",{"$f":"TopN(H12:BU12,6)","v":2312},{"$f":"SUM(IF(CountRaces(H12:I12)>0,1,0),IF(CountRaces(J12:U12)>0,1,0),IF(CountRaces(V12:AE12)>0,1,0),IF(CountRaces(AF12:AM12)>0,1,0),IF(CountRaces(AN12:AS12)>0,1,0),IF(CountRaces(AT12:BA12)>0,1,0),IF(CountRaces(BB12:BI12)>0,1,0),IF(CountRaces(BJ12:BO12)>0,1,0),IF(CountRaces(BP12:BU12)>0,1,0))","v":2},{"$f":"CountRaces(H12:BU12)","v":4},"PREST. / PUNTI",null,null,"21.46 =",625,null,null,null,null,"4.24 =",570,null,null,null,null,"11.07 =",663,null,null,null,null,null,null,"7.20 =",454]
[6,"MELIS Federica","PV108 C.U.S. PAVIA",{"$f":"TopN(H13:BU13,6)","v":2149},{"$f":"SUM(IF(CountRaces(H13:I13)>0,1,0),IF(CountRaces(J13:U13)>0,1,0),IF(CountRaces(V13:AE13)>0,1,0),IF(CountRaces(AF13:AM13)>0,1,0),IF(CountRaces(AN13:AS13)>0,1,0),IF(CountRaces(AT13:BA13)>0,1,0),IF(CountRaces(BB13:BI13)>0,1,0),IF(CountRaces(BJ13:BO13)>0,1,0),IF(CountRaces(BP13:BU13)>0,1,0))","v":3},{"$f":"CountRaces(H13:BU13)","v":4},"PREST. / PUNTI","3:34.77 =",527,null,null,null,null,"3:33.12 =",545,null,null,null,null,null,null,"11.96 =",432,"56.28 =",645]
[7,"SILVAGGIO SORIANO Emma","PV108 C.U.S. PAVIA",{"$f":"TopN(H14:BU14,6)","v":1813},{"$f":"SUM(IF(CountRaces(H14:I14)>0,1,0),IF(CountRaces(J14:U14)>0,1,0),IF(CountRaces(V14:AE14)>0,1,0),IF(CountRaces(AF14:AM14)>0,1,0),IF(CountRaces(AN14:AS14)>0,1,0),IF(CountRaces(AT14:BA14)>0,1,0),IF(CountRaces(BB14:BI14)>0,1,0),IF(CountRaces(BJ14:BO14)>0,1,0),IF(CountRaces(BP14:BU14)>0,1,0))","v":2},{"$f":"CountRaces(H14:BU14)","v":3},"PREST. / PUNTI",null,null,null,null,null,null,null,null,"4.30 =",588,null,null,null,null,"11.24 =",616,null,null,null,null,"1.30 =",609]
[8,"CAMPORA Emma","PV245 ATLETICA IRIENSE VOGHERA",{"$f":"TopN(H15:BU15,6)","v":1720},{"$f":"SUM(IF(CountRaces(H15:I15)>0,1,0),IF(CountRaces(J15:U15)>0,1,0),IF(CountRaces(V15:AE15)>0,1,0),IF(CountRaces(AF15:AM15)>0,1,0),IF(CountRaces(AN15:AS15)>0,1,0),IF(CountRaces(AT15:BA15)>0,1,0),IF(CountRaces(BB15:BI15)>0,1,0),IF(CountRaces(BJ15:BO15)>0,1,0),IF(CountRaces(BP15:BU15)>0,1,0))","v":2},{"$f":"CountRaces(H15:BU15)","v":3},"PREST. / PUNTI","3:33.78 =",537,null,null,null,null,null,null,null,null,null,null,null,null,"11.64 =",510,"55.75 =",673]
[9,"COSTA Alice","PV245 ATLETICA IRIENSE VOGHERA",{"$f":"TopN(H16:BU16,6)","v":1648},{"$f":"SUM(IF(CountRaces(H16:I16)>0,1,0),IF(CountRaces(J16:U16)>0,1,0),IF(CountRaces(V16:AE16)>0,1,0),IF(CountRaces(AF16:AM16)>0,1,0),IF(CountRaces(AN16:AS16)>0,1,0),IF(CountRaces(AT16:BA16)>0,1,0),IF(CountRaces(BB16:BI16)>0,1,0),IF(CountRaces(BJ16:BO16)>0,1,0),IF(CountRaces(BP16:BU16)>0,1,0))","v":2},{"$f":"CountRaces(H16:BU16)","v":3},"PREST. / PUNTI","3:42.63 =",444,null,null,null,null,null,null,null,null,null,null,null,null,"11.56 =",531,"55.75 =",673]
[10,"GIORGI Ilaria","PV245 ATLETICA IRIENSE VOGHERA",{"$f":"TopN(H17:BU17,6)","v":1644},{"$f":"SUM(IF(CountRaces(H17:I17)>0,1,0),IF(CountRaces(J17:U17)>0,1,0),IF(CountRaces(V17:AE17)>0,1,0),IF(CountRaces(AF17:AM17)>0,1,0),IF(CountRaces(AN17:AS17)>0,1,0),IF(CountRaces(AT17:BA17)>0,1,0),IF(CountRaces(BB17:BI17)>0,1,0),IF(CountRaces(BJ17:BO17)>0,1,0),IF(CountRaces(BP17:BU17)>0,1,0))","v":2},{"$f":"CountRaces(H17:BU17)","v":3},"PREST. / PUNTI","3:48.82 =",383,null,null,null,null,null,null,null,null,null,null,null,null,"11.29 =",602,"56.01 =",659]
[11,"GUERRA Livia","PV245 ATLETICA IRIENSE VOGHERA",{"$f":"TopN(H18:BU18,6)","v":1513},{"$f":"SUM(IF(CountRaces(H18:I18)>0,1,0),IF(CountRaces(J18:U18)>0,1,0),IF(CountRaces(V18:AE18)>0,1,0),IF(CountRaces(AF18:AM18)>0,1,0),IF(CountRaces(AN18:AS18)>0,1,0),IF(CountRaces(AT18:BA18)>0,1,0),IF(CountRaces(BB18:BI18)>0,1,0),IF(CountRaces(BJ18:BO18)>0,1,0),IF(CountRaces(BP18:BU18)>0,1,0))","v":2},{"$f":"CountRaces(H18:BU18)","v":2},"PREST. / PUNTI","3:14.50 =",744,null,null,null,null,"3:14.03 =",769]
[12,"SIMONETTI Margherita","PV108 C.U.S. PAVIA",{"$f":"TopN(H19:BU19,6)","v":1435},{"$f":"SUM(IF(CountRaces(H19:I19)>0,1,0),IF(CountRaces(J19:U19)>0,1,0),IF(CountRaces(V19:AE19)>0,1,0),IF(CountRaces(AF19:AM19)>0,1,0),IF(CountRaces(AN19:AS19)>0,1,0),IF(CountRaces(AT19:BA19)>0,1,0),IF(CountRaces(BB19:BI19)>0,1,0),IF(CountRaces(BJ19:BO19)>0,1,0),IF(CountRaces(BP19:BU19)>0,1,0))","v":2},{"$f":"CountRaces(H19:BU19)","v":2},"PREST. / PUNTI","3:20.91 =",685,null,null,null,null,null,null,null,null,null,null,null,null,null,null,null,null,"4:19.77 =",750]
[13,"DEIANA Arianna","PV108 C.U.S. PAVIA",{"$f":"TopN(H20:BU20,6)","v":1297},{"$f":"SUM(IF(CountRaces(H20:I20)>0,1,0),IF(CountRaces(J20:U20)>0,1,0),IF(CountRaces(V20:AE20)>0,1,0),IF(CountRaces(AF20:AM20)>0,1,0),IF(CountRaces(AN20:AS20)>0,1,0),IF(CountRaces(AT20:BA20)>0,1,0),IF(CountRaces(BB20:BI20)>0,1,0),IF(CountRaces(BJ20:BO20)>0,1,0),IF(CountRaces(BP20:BU20)>0,1,0))","v":2},{"$f":"CountRaces(H20:BU20)","v":3},"PREST. / PUNTI",null,null,"22.57 =",496,null,null,null,null,"3.67 =",400,null,null,null,null,"12.09 =",401]
[14,"DAPIAGGI Giulia","PV245 ATLETICA IRIENSE VOGHERA",{"$f":"TopN(H21:BU21,6)","v":1266},{"$f":"SUM(IF(CountRaces(H21:I21)>0,1,0),IF(CountRaces(J21:U21)>0,1,0),IF(CountRaces(V21:AE21)>0,1,0),IF(CountRaces(AF21:AM21)>0,1,0),IF(CountRaces(AN21:AS21)>0,1,0),IF(CountRaces(AT21:BA21)>0,1,0),IF(CountRaces(BB21:BI21)>0,1,0),IF(CountRaces(BJ21:BO21)>0,1,0),IF(CountRaces(BP21:BU21)>0,1,0))","v":2},{"$f":"CountRaces(H21:BU21)","v":3},"PREST. / PUNTI","4:05.30 =",237,null,null,null,null,null,null,null,null,null,null,null,null,"12.29 =",356,"55.75 =",673]
[15,"PICCIO Ester","PV108 C.U.S. PAVIA",{"$f":"TopN(H22:BU22,6)","v":1263},{"$f":"SUM(IF(CountRaces(H22:I22)>0,1,0),IF(CountRaces(J22:U22)>0,1,0),IF(CountRaces(V22:AE22)>0,1,0),IF(CountRaces(AF22:AM22)>0,1,0),IF(CountRaces(AN22:AS22)>0,1,0),IF(CountRaces(AT22:BA22)>0,1,0),IF(CountRaces(BB22:BI22)>0,1,0),IF(CountRaces(BJ22:BO22)>0,1,0),IF(CountRaces(BP22:BU22)>0,1,0))","v":2},{"$f":"CountRaces(H22:BU22)","v":3},"PREST. / PUNTI",null,null,"22.48 =",506,null,null,null,null,"3.49 =",349,null,null,null,null,"12.06 =",408]
[16,"CARNEVALE Diana","PV245 ATLETICA IRIENSE VOGHERA",{"$f":"TopN(H23:BU23,6)","v":1216},{"$f":"SUM(IF(CountRaces(H23:I23)>0,1,0),IF(CountRaces(J23:U23)>0,1,0),IF(CountRaces(V23:AE23)>0,1,0),IF(CountRaces(AF23:AM23)>0,1,0),IF(CountRaces(AN23:AS23)>0,1,0),IF(CountRaces(AT23:BA23)>0,1,0),IF(CountRaces(BB23:BI23)>0,1,0),IF(CountRaces(BJ23:BO23)>0,1,0),IF(CountRaces(BP23:BU23)>0,1,0))","v":1},{"$f":"CountRaces(H23:BU23)","v":2},"PREST. / PUNTI",null,null,null,null,null,null,null,null,null,null,null,null,null,null,"11.46 =",557,"56.01 =",659]
[17,"ARAMINI Sole","PV245 ATLETICA IRIENSE VOGHERA",{"$f":"TopN(H24:BU24,6)","v":1184},{"$f":"SUM(IF(CountRaces(H24:I24)>0,1,0),IF(CountRaces(J24:U24)>0,1,0),IF(CountRaces(V24:AE24)>0,1,0),IF(CountRaces(AF24:AM24)>0,1,0),IF(CountRaces(AN24:AS24)>0,1,0),IF(CountRaces(AT24:BA24)>0,1,0),IF(CountRaces(BB24:BI24)>0,1,0),IF(CountRaces(BJ24:BO24)>0,1,0),IF(CountRaces(BP24:BU24)>0,1,0))","v":1},{"$f":"CountRaces(H24:BU24)","v":2},"PREST. / PUNTI",null,null,null,null,null,null,null,null,null,null,null,null,null,null,"11.58 =",525,"56.01 =",659]
[18,"PINI Rossella","PV108 C.U.S. PAVIA",{"$f":"TopN(H25:BU25,6)","v":1164},{"$f":"SUM(IF(CountRaces(H25:I25)>0,1,0),IF(CountRaces(J25:U25)>0,1,0),IF(CountRaces(V25:AE25)>0,1,0),IF(CountRaces(AF25:AM25)>0,1,0),IF(CountRaces(AN25:AS25)>0,1,0),IF(CountRaces(AT25:BA25)>0,1,0),IF(CountRaces(BB25:BI25)>0,1,0),IF(CountRaces(BJ25:BO25)>0,1,0),IF(CountRaces(BP25:BU25)>0,1,0))","v":2},{"$f":"CountRaces(H25:BU25)","v":2},"PREST. / PUNTI",null,null,null,null,"48.88 =",519,null,null,null,null,null,null,null,null,null,null,"56.28 =",645]
[19,"CROSTA Margherita","PV412 LA PODISTICA ROBBIESE",{"$f":"TopN(H26:BU26,6)","v":1122},{"$f":"SUM(IF(CountRaces(H26:I26)>0,1,0),IF(CountRaces(J26:U26)>0,1,0),IF(CountRaces(V26:AE26)>0,1,0),IF(CountRaces(AF26:AM26)>0,1,0),IF(CountRaces(AN26:AS26)>0,1,0),IF(CountRaces(AT26:BA26)>0,1,0),IF(CountRaces(BB26:BI26)>0,1,0),IF(CountRaces(BJ26:BO26)>0,1,0),IF(CountRaces(BP26:BU26)>0,1,0))","v":1},{"$f":"CountRaces(H26:BU26)","v":2},"PREST. / PUNTI",null,null,null,null,null,null,null,null,null,null,null,null,null,null,"11.71 =",492,"56.57 =",630]
[20,"YOUOVOP CHOUPA Kristell","PV108 C.U.S. PAVIA",{"$f":"TopN(H27:BU27,6)","v":1120},{"$f":"SUM(IF(CountRaces(H27:I27)>0,1,0),IF(CountRaces(J27:U27)>0,1,0),IF(CountRaces(V27:AE27)>0,1,0),IF(CountRaces(AF27:AM27)>0,1,0),IF(CountRaces(AN27:AS27)>0,1,0),IF(CountRaces(AT27:BA27)>0,1,0),IF(CountRaces(BB27:BI27)>0,1,0),IF(CountRaces(BJ27:BO27)>0,1,0),IF(CountRaces(BP27:BU27)>0,1,0))","v":1},{"$f":"CountRaces(H27:BU27)","v":2},"PREST. / PUNTI",null,null,null,null,null,null,null,null,null,null,null,null,null,null,"11.78 =",475,"56.28 =",645]
[21,"VANZAN Aurora","PV108 C.U.S. PAVIA",{"$f":"TopN(H28:BU28,6)","v":1113},{"$f":"SUM(IF(CountRaces(H28:I28)>0,1,0),IF(CountRaces(J28:U28)>0,1,0),IF(CountRaces(V28:AE28)>0,1,0),IF(CountRaces(AF28:AM28)>0,1,0),IF(CountRaces(AN28:AS28)>0,1,0),IF(CountRaces(AT28:BA28)>0,1,0),IF(CountRaces(BB28:BI28)>0,1,0),IF(CountRaces(BJ28:BO28)>0,1,0),IF(CountRaces(BP28:BU28)>0,1,0))","v":1},{"$f":"CountRaces(H28:BU28)","v":2},"PREST. / PUNTI",null,null,null,null,null,null,null,null,null,null,null,null,null,null,"11.81 =",468,"56.28 =",645]
[22,"DUO' Irene","PV412 LA PODISTICA ROBBIESE",{"$f":"TopN(H29:BU29,6)","v":1093},{"$f":"SUM(IF(CountRaces(H29:I29)>0,1,0),IF(CountRaces(J29:U29)>0,1,0),IF(CountRaces(V29:AE29)>0,1,0),IF(CountRaces(AF29:AM29)>0,1,0),IF(CountRaces(AN29:AS29)>0,1,0),IF(CountRaces(AT29:BA29)>0,1,0),IF(CountRaces(BB29:BI29)>0,1,0),IF(CountRaces(BJ29:BO29)>0,1,0),IF(CountRaces(BP29:BU29)>0,1,0))","v":1},{"$f":"CountRaces(H29:BU29)","v":2},"PREST. / PUNTI",null,null,null,null,null,null,null,null,null,null,null,null,null,null,"11.83 =",463,"56.57 =",630]
[23,"RE Eleonora","PV412 LA PODISTICA ROBBIESE",{"$f":"TopN(H30:BU30,6)","v":1066},{"$f":"SUM(IF(CountRaces(H30:I30)>0,1,0),IF(CountRaces(J30:U30)>0,1,0),IF(CountRaces(V30:AE30)>0,1,0),IF(CountRaces(AF30:AM30)>0,1,0),IF(CountRaces(AN30:AS30)>0,1,0),IF(CountRaces(AT30:BA30)>0,1,0),IF(CountRaces(BB30:BI30)>0,1,0),IF(CountRaces(BJ30:BO30)>0,1,0),IF(CountRaces(BP30:BU30)>0,1,0))","v":1},{"$f":"CountRaces(H30:BU30)","v":2},"PREST. / PUNTI",null,null,null,null,null,null,null,null,null,null,null,null,null,null,"11.94 =",436,"56.57 =",630]
[24,"ZANGRANDI Valentina","PV245 ATLETICA IRIENSE VOGHERA",{"$f":"TopN(H31:BU31,6)","v":1063},{"$f":"SUM(IF(CountRaces(H31:I31)>0,1,0),IF(CountRaces(J31:U31)>0,1,0),IF(CountRaces(V31:AE31)>0,1,0),IF(CountRaces(AF31:AM31)>0,1,0),IF(CountRaces(AN31:AS31)>0,1,0),IF(CountRaces(AT31:BA31)>0,1,0),IF(CountRaces(BB31:BI31)>0,1,0),IF(CountRaces(BJ31:BO31)>0,1,0),IF(CountRaces(BP31:BU31)>0,1,0))","v":1},{"$f":"CountRaces(H31:BU31)","v":2},"PREST. / PUNTI",null,null,null,null,null,null,null,null,null,null,null,null,null,null,"12.14 =",390,"55.75 =",673]
[25,"GRAMEGNA Martina","PV108 C.U.S. PAVIA",{"$f":"TopN(H32:BU32,6)","v":1051},{"$f":"SUM(IF(CountRaces(H32:I32)>0,1,0),IF(CountRaces(J32:U32)>0,1,0),IF(CountRaces(V32:AE32)>0,1,0),IF(CountRaces(AF32:AM32)>0,1,0),IF(CountRaces(AN32:AS32)>0,1,0),IF(CountRaces(AT32:BA32)>0,1,0),IF(CountRaces(BB32:BI32)>0,1,0),IF(CountRaces(BJ32:BO32)>0,1,0),IF(CountRaces(BP32:BU32)>0,1,0))","v":2},{"$f":"CountRaces(H32:BU32)","v":2},"PREST. / PUNTI","3:30.72 =",571,null,null,"47.70 =",480]
[26,"BREDA Martina","PV108 C.U.S. PAVIA",{"$f":"TopN(H33:BU33,6)","v":1047},{"$f":"SUM(IF(CountRaces(H33:I33)>0,1,0),IF(CountRaces(J33:U33)>0,1,0),IF(CountRaces(V33:AE33)>0,1,0),IF(CountRaces(AF33:AM33)>0,1,0),IF(CountRaces(AN33:AS33)>0,1,0),IF(CountRaces(AT33:BA33)>0,1,0),IF(CountRaces(BB33:BI33)>0,1,0),IF(CountRaces(BJ33:BO33)>0,1,0),IF(CountRaces(BP33:BU33)>0,1,0))","v":2},{"$f":"CountRaces(H33:BU33)","v":2},"PREST. / PUNTI",null,null,"22.03 =",557,null,null,null,null,null,null,null,null,null,null,"11.72 =",490]
[27,"SACCHI Matilde","PV108 C.U.S. PAVIA",{"$f":"TopN(H34:BU34,6)","v":1046},{"$f":"SUM(IF(CountRaces(H34:I34)>0,1,0),IF(CountRaces(J34:U34)>0,1,0),IF(CountRaces(V34:AE34)>0,1,0),IF(CountRaces(AF34:AM34)>0,1,0),IF(CountRaces(AN34:AS34)>0,1,0),IF(CountRaces(AT34:BA34)>0,1,0),IF(CountRaces(BB34:BI34)>0,1,0),IF(CountRaces(BJ34:BO34)>0,1,0),IF(CountRaces(BP34:BU34)>0,1,0))","v":1},{"$f":"CountRaces(H34:BU34)","v":2},"PREST. / PUNTI",null,null,null,null,"48.64 =",531,null,null,"4.06 =",515]
[28,"CARNEVALE Matilde","PV412 LA PODISTICA ROBBIESE",{"$f":"TopN(H35:BU35,6)","v":954},{"$f":"SUM(IF(CountRaces(H35:I35)>0,1,0),IF(CountRaces(J35:U35)>0,1,0),IF(CountRaces(V35:AE35)>0,1,0),IF(CountRaces(AF35:AM35)>0,1,0),IF(CountRaces(AN35:AS35)>0,1,0),IF(CountRaces(AT35:BA35)>0,1,0),IF(CountRaces(BB35:BI35)>0,1,0),IF(CountRaces(BJ35:BO35)>0,1,0),IF(CountRaces(BP35:BU35)>0,1,0))","v":1},{"$f":"CountRaces(H35:BU35)","v":2},"PREST. / PUNTI",null,null,null,null,null,null,null,null,null,null,null,null,null,null,"12.44 =",324,"56.57 =",630]
[29,"PEREGO Agnese","PV108 C.U.S. PAVIA",{"$f":"TopN(H36:BU36,6)","v":944},{"$f":"SUM(IF(CountRaces(H36:I36)>0,1,0),IF(CountRaces(J36:U36)>0,1,0),IF(CountRaces(V36:AE36)>0,1,0),IF(CountRaces(AF36:AM36)>0,1,0),IF(CountRaces(AN36:AS36)>0,1,0),IF(CountRaces(AT36:BA36)>0,1,0),IF(CountRaces(BB36:BI36)>0,1,0),IF(CountRaces(BJ36:BO36)>0,1,0),IF(CountRaces(BP36:BU36)>0,1,0))","v":2},{"$f":"CountRaces(H36:BU36)","v":2},"PREST. / PUNTI",null,null,null,null,null,null,null,null,"3.78 =",432,null,null,null,null,null,null,null,null,null,null,"1.20 =",512]
[30,"NEGRI Anita","PV108 C.U.S. PAVIA",{"$f":"TopN(H37:BU37,6)","v":911},{"$f":"SUM(IF(CountRaces(H37:I37)>0,1,0),IF(CountRaces(J37:U37)>0,1,0),IF(CountRaces(V37:AE37)>0,1,0),IF(CountRaces(AF37:AM37)>0,1,0),IF(CountRaces(AN37:AS37)>0,1,0),IF(CountRaces(AT37:BA37)>0,1,0),IF(CountRaces(BB37:BI37)>0,1,0),IF(CountRaces(BJ37:BO37)>0,1,0),IF(CountRaces(BP37:BU37)>0,1,0))","v":1},{"$f":"CountRaces(H37:BU37)","v":2},"PREST. / PUNTI",null,null,null,null,"50.31 =",450,null,null,"3.88 =",461]
[31,"MAZZOCCHI Rebecca Francesca","PV245 ATLETICA IRIENSE VOGHERA",{"$f":"TopN(H38:BU38,6)","v":908},{"$f":"SUM(IF(CountRaces(H38:I38)>0,1,0),IF(CountRaces(J38:U38)>0,1,0),IF(CountRaces(V38:AE38)>0,1,0),IF(CountRaces(AF38:AM38)>0,1,0),IF(CountRaces(AN38:AS38)>0,1,0),IF(CountRaces(AT38:BA38)>0,1,0),IF(CountRaces(BB38:BI38)>0,1,0),IF(CountRaces(BJ38:BO38)>0,1,0),IF(CountRaces(BP38:BU38)>0,1,0))","v":1},{"$f":"CountRaces(H38:BU38)","v":2},"PREST. / PUNTI",null,null,null,null,null,null,null,null,null,null,null,null,null,null,"12.81 =",249,"56.01 =",659]
[32,"DUCA  Giorgia","PV108 C.U.S. PAVIA",{"$f":"TopN(H39:BU39,6)","v":894},{"$f":"SUM(IF(CountRaces(H39:I39)>0,1,0),IF(CountRaces(J39:U39)>0,1,0),IF(CountRaces(V39:AE39)>0,1,0),IF(CountRaces(AF39:AM39)>0,1,0),IF(CountRaces(AN39:AS39)>0,1,0),IF(CountRaces(AT39:BA39)>0,1,0),IF(CountRaces(BB39:BI39)>0,1,0),IF(CountRaces(BJ39:BO39)>0,1,0),IF(CountRaces(BP39:BU39)>0,1,0))","v":1},{"$f":"CountRaces(H39:BU39)","v":2},"PREST. / PUNTI",null,null,null,null,"49.46 =",491,null,null,"3.68 =",403]
[33,"BIOLZI Elisa","PV108 C.U.S. PAVIA",{"$f":"TopN(H40:BU40,6)","v":866},{"$f":"SUM(IF(CountRaces(H40:I40)>0,1,0),IF(CountRaces(J40:U40)>0,1,0),IF(CountRaces(V40:AE40)>0,1,0),IF(CountRaces(AF40:AM40)>0,1,0),IF(CountRaces(AN40:AS40)>0,1,0),IF(CountRaces(AT40:BA40)>0,1,0),IF(CountRaces(BB40:BI40)>0,1,0),IF(CountRaces(BJ40:BO40)>0,1,0),IF(CountRaces(BP40:BU40)>0,1,0))","v":1},{"$f":"CountRaces(H40:BU40)","v":2},"PREST. / PUNTI",null,null,null,null,"50.46 =",443,null,null,"3.75 =",423]
[34,"ROMERI Vera","PV108 C.U.S. PAVIA",{"$f":"TopN(H41:BU41,6)","v":866},{"$f":"SUM(IF(CountRaces(H41:I41)>0,1,0),IF(CountRaces(J41:U41)>0,1,0),IF(CountRaces(V41:AE41)>0,1,0),IF(CountRaces(AF41:AM41)>0,1,0),IF(CountRaces(AN41:AS41)>0,1,0),IF(CountRaces(AT41:BA41)>0,1,0),IF(CountRaces(BB41:BI41)>0,1,0),IF(CountRaces(BJ41:BO41)>0,1,0),IF(CountRaces(BP41:BU41)>0,1,0))","v":1},{"$f":"CountRaces(H41:BU41)","v":1},"PREST. / PUNTI",null,null,null,null,null,null,"3:06.53 =",866]
[35,"CAGNONI Greta","PV108 C.U.S. PAVIA",{"$f":"TopN(H42:BU42,6)","v":781},{"$f":"SUM(IF(CountRaces(H42:I42)>0,1,0),IF(CountRaces(J42:U42)>0,1,0),IF(CountRaces(V42:AE42)>0,1,0),IF(CountRaces(AF42:AM42)>0,1,0),IF(CountRaces(AN42:AS42)>0,1,0),IF(CountRaces(AT42:BA42)>0,1,0),IF(CountRaces(BB42:BI42)>0,1,0),IF(CountRaces(BJ42:BO42)>0,1,0),IF(CountRaces(BP42:BU42)>0,1,0))","v":2},{"$f":"CountRaces(H42:BU42)","v":3},"PREST. / PUNTI",null,null,null,null,null,null,null,null,"3.25 =",283,null,null,"12.45 =",268,"12.91 =",230]
[36,"MARCHESI Rebecca Elsa","PV108 C.U.S. PAVIA",{"$f":"TopN(H43:BU43,6)","v":754},{"$f":"SUM(IF(CountRaces(H43:I43)>0,1,0),IF(CountRaces(J43:U43)>0,1,0),IF(CountRaces(V43:AE43)>0,1,0),IF(CountRaces(AF43:AM43)>0,1,0),IF(CountRaces(AN43:AS43)>0,1,0),IF(CountRaces(AT43:BA43)>0,1,0),IF(CountRaces(BB43:BI43)>0,1,0),IF(CountRaces(BJ43:BO43)>0,1,0),IF(CountRaces(BP43:BU43)>0,1,0))","v":2},{"$f":"CountRaces(H43:BU43)","v":3},"PREST. / PUNTI",null,null,"24.81 =",272,null,null,null,null,"3.26 =",285,null,null,null,null,"13.09 =",197]
[37,"MASSOLA Alice","PV108 C.U.S. PAVIA",{"$f":"TopN(H44:BU44,6)","v":679},{"$f":"SUM(IF(CountRaces(H44:I44)>0,1,0),IF(CountRaces(J44:U44)>0,1,0),IF(CountRaces(V44:AE44)>0,1,0),IF(CountRaces(AF44:AM44)>0,1,0),IF(CountRaces(AN44:AS44)>0,1,0),IF(CountRaces(AT44:BA44)>0,1,0),IF(CountRaces(BB44:BI44)>0,1,0),IF(CountRaces(BJ44:BO44)>0,1,0),IF(CountRaces(BP44:BU44)>0,1,0))","v":2},{"$f":"CountRaces(H44:BU44)","v":2},"PREST. / PUNTI",null,null,"23.42 =",405,null,null,null,null,null,null,null,null,null,null,"12.68 =",274]
[38,"TARANTOLA Martina","PV108 C.U.S. PAVIA",{"$f":"TopN(H45:BU45,6)","v":669},{"$f":"SUM(IF(CountRaces(H45:I45)>0,1,0),IF(CountRaces(J45:U45)>0,1,0),IF(CountRaces(V45:AE45)>0,1,0),IF(CountRaces(AF45:AM45)>0,1,0),IF(CountRaces(AN45:AS45)>0,1,0),IF(CountRaces(AT45:BA45)>0,1,0),IF(CountRaces(BB45:BI45)>0,1,0),IF(CountRaces(BJ45:BO45)>0,1,0),IF(CountRaces(BP45:BU45)>0,1,0))","v":1},{"$f":"CountRaces(H45:BU45)","v":1},"PREST. / PUNTI",null,null,null,null,null,null,"3:22.19 =",669]
[39,"LEPORI ALICE","PV108 C.U.S. PAVIA",{"$f":"TopN(H46:BU46,6)","v":630},{"$f":"SUM(IF(CountRaces(H46:I46)>0,1,0),IF(CountRaces(J46:U46)>0,1,0),IF(CountRaces(V46:AE46)>0,1,0),IF(CountRaces(AF46:AM46)>0,1,0),IF(CountRaces(AN46:AS46)>0,1,0),IF(CountRaces(AT46:BA46)>0,1,0),IF(CountRaces(BB46:BI46)>0,1,0),IF(CountRaces(BJ46:BO46)>0,1,0),IF(CountRaces(BP46:BU46)>0,1,0))","v":2},{"$f":"CountRaces(H46:BU46)","v":3},"PREST. / PUNTI",null,null,null,null,null,null,null,null,"2.70 =",139,"13.30 =",294,null,null,"13.09 =",197]
[40,"ZALIANI RONDI Matilde","PV108 C.U.S. PAVIA",{"$f":"TopN(H47:BU47,6)","v":609},{"$f":"SUM(IF(CountRaces(H47:I47)>0,1,0),IF(CountRaces(J47:U47)>0,1,0),IF(CountRaces(V47:AE47)>0,1,0),IF(CountRaces(AF47:AM47)>0,1,0),IF(CountRaces(AN47:AS47)>0,1,0),IF(CountRaces(AT47:BA47)>0,1,0),IF(CountRaces(BB47:BI47)>0,1,0),IF(CountRaces(BJ47:BO47)>0,1,0),IF(CountRaces(BP47:BU47)>0,1,0))","v":2},{"$f":"CountRaces(H47:BU47)","v":2},"PREST. / PUNTI",null,null,"23.91 =",356,null,null,null,null,null,null,null,null,null,null,"12.79 =",253]
[41,"SCARDI Eldana","PV108 C.U.S. PAVIA",{"$f":"TopN(H48:BU48,6)","v":566},{"$f":"SUM(IF(CountRaces(H48:I48)>0,1,0),IF(CountRaces(J48:U48)>0,1,0),IF(CountRaces(V48:AE48)>0,1,0),IF(CountRaces(AF48:AM48)>0,1,0),IF(CountRaces(AN48:AS48)>0,1,0),IF(CountRaces(AT48:BA48)>0,1,0),IF(CountRaces(BB48:BI48)>0,1,0),IF(CountRaces(BJ48:BO48)>0,1,0),IF(CountRaces(BP48:BU48)>0,1,0))","v":1},{"$f":"CountRaces(H48:BU48)","v":1},"PREST. / PUNTI",null,null,null,null,null,null,"3:31.17 =",566]
[42,"BUA Margherita","PV108 C.U.S. PAVIA",{"$f":"TopN(H49:BU49,6)","v":497},{"$f":"SUM(IF(CountRaces(H49:I49)>0,1,0),IF(CountRaces(J49:U49)>0,1,0),IF(CountRaces(V49:AE49)>0,1,0),IF(CountRaces(AF49:AM49)>0,1,0),IF(CountRaces(AN49:AS49)>0,1,0),IF(CountRaces(AT49:BA49)>0,1,0),IF(CountRaces(BB49:BI49)>0,1,0),IF(CountRaces(BJ49:BO49)>0,1,0),IF(CountRaces(BP49:BU49)>0,1,0))","v":1},{"$f":"CountRaces(H49:BU49)","v":1},"PREST. / PUNTI",null,null,null,null,null,null,null,null,"4.00 =",497]
[43,"SOFFIENTINI Irene","PV108 C.U.S. PAVIA",{"$f":"TopN(H50:BU50,6)","v":480},{"$f":"SUM(IF(CountRaces(H50:I50)>0,1,0),IF(CountRaces(J50:U50)>0,1,0),IF(CountRaces(V50:AE50)>0,1,0),IF(CountRaces(AF50:AM50)>0,1,0),IF(CountRaces(AN50:AS50)>0,1,0),IF(CountRaces(AT50:BA50)>0,1,0),IF(CountRaces(BB50:BI50)>0,1,0),IF(CountRaces(BJ50:BO50)>0,1,0),IF(CountRaces(BP50:BU50)>0,1,0))","v":1},{"$f":"CountRaces(H50:BU50)","v":1},"PREST. / PUNTI",null,null,null,null,null,null,"3:39.12 =",480]
[44,"BALLADORE Sara","PV108 C.U.S. PAVIA",{"$f":"TopN(H51:BU51,6)","v":479},{"$f":"SUM(IF(CountRaces(H51:I51)>0,1,0),IF(CountRaces(J51:U51)>0,1,0),IF(CountRaces(V51:AE51)>0,1,0),IF(CountRaces(AF51:AM51)>0,1,0),IF(CountRaces(AN51:AS51)>0,1,0),IF(CountRaces(AT51:BA51)>0,1,0),IF(CountRaces(BB51:BI51)>0,1,0),IF(CountRaces(BJ51:BO51)>0,1,0),IF(CountRaces(BP51:BU51)>0,1,0))","v":1},{"$f":"CountRaces(H51:BU51)","v":1},"PREST. / PUNTI",null,null,null,null,null,null,null,null,"3.94 =",479]
[45,"AGHOURI Yasmina","PV421 ATLETICA CASORATE PRIMO",{"$f":"TopN(H52:BU52,6)","v":374},{"$f":"SUM(IF(CountRaces(H52:I52)>0,1,0),IF(CountRaces(J52:U52)>0,1,0),IF(CountRaces(V52:AE52)>0,1,0),IF(CountRaces(AF52:AM52)>0,1,0),IF(CountRaces(AN52:AS52)>0,1,0),IF(CountRaces(AT52:BA52)>0,1,0),IF(CountRaces(BB52:BI52)>0,1,0),IF(CountRaces(BJ52:BO52)>0,1,0),IF(CountRaces(BP52:BU52)>0,1,0))","v":1},{"$f":"CountRaces(H52:BU52)","v":1},"PREST. / PUNTI",null,null,"23.72 =",374]
[46,"ORLANDI Martina","PV108 C.U.S. PAVIA",{"$f":"TopN(H53:BU53,6)","v":346},{"$f":"SUM(IF(CountRaces(H53:I53)>0,1,0),IF(CountRaces(J53:U53)>0,1,0),IF(CountRaces(V53:AE53)>0,1,0),IF(CountRaces(AF53:AM53)>0,1,0),IF(CountRaces(AN53:AS53)>0,1,0),IF(CountRaces(AT53:BA53)>0,1,0),IF(CountRaces(BB53:BI53)>0,1,0),IF(CountRaces(BJ53:BO53)>0,1,0),IF(CountRaces(BP53:BU53)>0,1,0))","v":1},{"$f":"CountRaces(H53:BU53)","v":1},"PREST. / PUNTI",null,null,"24.01 =",346]
[47,"DURANTE Micaela Roseann","PV108 C.U.S. PAVIA",{"$f":"TopN(H54:BU54,6)","v":295},{"$f":"SUM(IF(CountRaces(H54:I54)>0,1,0),IF(CountRaces(J54:U54)>0,1,0),IF(CountRaces(V54:AE54)>0,1,0),IF(CountRaces(AF54:AM54)>0,1,0),IF(CountRaces(AN54:AS54)>0,1,0),IF(CountRaces(AT54:BA54)>0,1,0),IF(CountRaces(BB54:BI54)>0,1,0),IF(CountRaces(BJ54:BO54)>0,1,0),IF(CountRaces(BP54:BU54)>0,1,0))","v":1},{"$f":"CountRaces(H54:BU54)","v":1},"PREST. / PUNTI",null,null,"24.55 =",295]
[48,"SANZOGNI Arianna","PV108 C.U.S. PAVIA",{"$f":"TopN(H55:BU55,6)","v":222},{"$f":"SUM(IF(CountRaces(H55:I55)>0,1,0),IF(CountRaces(J55:U55)>0,1,0),IF(CountRaces(V55:AE55)>0,1,0),IF(CountRaces(AF55:AM55)>0,1,0),IF(CountRaces(AN55:AS55)>0,1,0),IF(CountRaces(AT55:BA55)>0,1,0),IF(CountRaces(BB55:BI55)>0,1,0),IF(CountRaces(BJ55:BO55)>0,1,0),IF(CountRaces(BP55:BU55)>0,1,0))","v":1},{"$f":"CountRaces(H55:BU55)","v":1},"PREST. / PUNTI",null,null,"25.39 =",222]
[null,"MANZI Beatrice","PV108 C.U.S. PAVIA",{"$f":"TopN(H56:BU56,6)","v":0},{"$f":"SUM(IF(CountRaces(H56:I56)>0,1,0),IF(CountRaces(J56:U56)>0,1,0),IF(CountRaces(V56:AE56)>0,1,0),IF(CountRaces(AF56:AM56)>0,1,0),IF(CountRaces(AN56:AS56)>0,1,0),IF(CountRaces(AT56:BA56)>0,1,0),IF(CountRaces(BB56:BI56)>0,1,0),IF(CountRaces(BJ56:BO56)>0,1,0),IF(CountRaces(BP56:BU56)>0,1,0))","v":0},{"$f":"CountRaces(H56:BU56)","v":0},"PREST. / PUNTI"]

{"sheet":"CADETTI","index":3,"n_rows":27,"n_cols":66,"rows_kept":27,"cut":false,"hidden":false,"merged":[[6,23,6,24],[6,69,6,70],[6,47,6,48],[6,49,6,50],[6,51,6,52],[6,53,6,54],[6,55,6,56],[6,57,6,58],[6,59,6,60],[6,61,6,62],[6,63,6,64],[6,65,6,66],[6,67,6,68],[6,7,6,8],[6,9,6,10],[6,17,6,18],[6,45,6,46],[6,21,6,22],[6,27,6,28],[6,29,6,30],[6,31,6,32],[6,33,6,34],[6,35,6,36],[6,37,6,38],[6,39,6,40],[6,41,6,42],[6,43,6,44],[6,25,6,26],[5,59,5,64],[5,65,5,70],[4,37,4,42],[4,43,4,50],[4,51,4,58],[4,59,4,64],[4,65,4,70],[5,37,5,42],[5,43,5,50],[5,51,5,58],[4,29,4,36],[6,11,6,12],[6,13,6,14],[6,15,6,16],[3,0,3,5],[4,0,4,5],[4,7,4,8],[4,9,4,18],[4,19,4,28],[5,1,5,2],[5,3,5,5],[5,7,5,8],[5,9,5,18],[5,19,5,28],[6,19,6,20],[5,29,5,36]]}
[]
[]
[]
["GRAN PREMIO GIOVANILE FIDAL PAVIA 2025 CADETTI",null,null,null,null,null,null,null,null,null,null,null,null,null,null,null,null,null,null,null,null,null,null,null,null,null,null,null,null,null,null,null,null,null,null,null,null,null,null,null,null,null,null,null,null,null,null,null,null,null,null,"2000* = punteggio tabella Cadette"]
["CLASSIFICA DEFINITIVA aggiornata al 13/04/2025 da GRETA MARCHESE",null,null,null,null,null,"PROVA G.P.","1° PROVA G.P.",null,"2° PROVA G.P.",null,null,null,null,null,null,null,null,null,"3° PROVA G.P.",null,null,null,null,null,null,null,null,null,"4° PROVA G.P.",null,null,null,null,null,null,null,"5° PROVA G.P.",null,null,null,null,null,"6° PROVA G.P.",null,null,null,null,null,null,null,"7° PROVA G.P.",null,null,null,null,null,null,null,"8° PROVA G.P.",null,null,null,null,null,"9° PROVA G.P."]
[null,"Per segnalazioni di refusi contattare: cp.pavia@fidal.it",null,null,null,null,"MANIFESTAZIONE","SABATO 05/04\nVOGHERA\nXXXVI° MIGLIO CITTA' DI VOGHERA  \nI° RIUNIONE PROVINCIALE RAG / CAD 2025",null,"SABATO 12/04 PAVIA\nIX° MEMORIAL OMERO CAIELLO\nII° RIUNIONE PROVINCIALE RAG / CAD 2025",null,null,null,null,null,null,null,null,null,"DOMENICA 13/04 VIGEVANO\nIII° RIUNIONE PROVINCIALE RAG / CAD 2025",null,null,null,null,null,null,null,null,null,"GIOVEDI' 01/05 PAVIA\nXXVIII° MEETING DELLA LIBERAZIONE - MEMORIAL PAOLO MAGGIONI\nXXI° MEETING FESTA DELLA REPUBBLICA\nV° RIUNIONE PROVINCIALE RAG / CAD 2025",null,null,null,null,null,null,null,"SABATO 03/05 VOGHERA\nMEETING DI PRIMAVERA\nVI° RIUNIONE PROVINCIALE RAG / CAD 2025\nI° GIORNATA CAMPIONATI PROVINCIALI CAD",null,null,null,null,null,"GIOVEDI' 15/05 PAVIA\nVII° RIUNIONE PROVINCIALE RAG / CAD 2025\nII° GIORNATA CAMPIONATI PROVINCIALI RAG / CAD",null,null,null,null,null,null,null,"GIOVEDI' 22/05 VIGEVANO\nVIII° RIUNIONE PROVINCIALE RAG / CAD 2025\nIII° GIORNATA CAMPIONATI PROVINCIALI RAG / CAD",null,null,null,null,null,null,null,"DOMENICA 01/06 CASORATE PRIMO\nIX° MEMORIAL LAURA FERRARIO\nIX° RIUNIONE PROVINCIALE RAG / CAD 2025\nIV° GIORNATA CAMPIONATI PROVINCIALI RAG / CAD \nCAMPIONATI PROVINCIALI DI PROVE MULTIPLE RAG / CAD",null,null,null,null,null,"SABATO 04/10 VOGHERA\nMEETING D'AUTUNNO\nXII° RIUNIONE PROVINCIALE RAG / CAD 2025"]
["POS.","ATLETA","SOCIETA'","TOT.","N° MANIF.","N° GARE","GARA","1000 MT.",null,"150 MT.",null,"300 MT.",null,"300 HS",null,"1000 MT.",null,"LUNGO",null,"80 MT.",null,"1200 ST",null,"PESO",null,"TRIPLO",null,"ALTO"]
[1,"MARINONE Leonardo","PV412 LA PODISTICA ROBBIESE",{"$f":"TopN(H8:BS8,6)","v":2367},{"$f":"SUM(IF(CountRaces(H8:I8)>0,1,0),IF(CountRaces(J8:S8)>0,1,0),IF(CountRaces(T8:AC8)>0,1,0),IF(CountRaces(AD8:AK8)>0,1,0),IF(CountRaces(AL8:AQ8)>0,1,0),IF(CountRaces(AR8:AY8)>0,1,0),IF(CountRaces(AZ8:BG8)>0,1,0),IF(CountRaces(BH8:BM8)>0,1,0),IF(CountRaces(BN8:BS8)>0,1,0))","v":2},{"$f":"CountRaces(H8:BS8)","v":4},"PREST. / PUNTI",null,null,"18.11 =",756,null,null,"44.55 =",659,null,null,null,null,"10.37 =",527,null,null,"8.74 =",425]
[2,"CONTE Andrea","PV108 C.U.S. PAVIA",{"$f":"TopN(H9:BS9,6)","v":1284},{"$f":"SUM(IF(CountRaces(H9:I9)>0,1,0),IF(CountRaces(J9:S9)>0,1,0),IF(CountRaces(T9:AC9)>0,1,0),IF(CountRaces(AD9:AK9)>0,1,0),IF(CountRaces(AL9:AQ9)>0,1,0),IF(CountRaces(AR9:AY9)>0,1,0),IF(CountRaces(AZ9:BG9)>0,1,0),IF(CountRaces(BH9:BM9)>0,1,0),IF(CountRaces(BN9:BS9)>0,1,0))","v":2},{"$f":"CountRaces(H9:BS9)","v":2},"PREST. / PUNTI","2:58.64 =",599,null,null,null,null,null,null,"2:52.82 =",685]
[3,"CARONTI Cesare","PV108 C.U.S. PAVIA",{"$f":"TopN(H10:BS10,6)","v":1283},{"$f":"SUM(IF(CountRaces(H10:I10)>0,1,0),IF(CountRaces(J10:S10)>0,1,0),IF(CountRaces(T10:AC10)>0,1,0),IF(CountRaces(AD10:AK10)>0,1,0),IF(CountRaces(AL10:AQ10)>0,1,0),IF(CountRaces(AR10:AY10)>0,1,0),IF(CountRaces(AZ10:BG10)>0,1,0),IF(CountRaces(BH10:BM10)>0,1,0),IF(CountRaces(BN10:BS10)>0,1,0))","v":2},{"$f":"CountRaces(H10:BS10)","v":2},"PREST. / PUNTI",null,null,null,null,"40.85 =",622,null,null,null,null,null,null,null,null,null,null,null,null,"11.10 =",661]
[4,"PINATO Filippo","PV412 LA PODISTICA ROBBIESE",{"$f":"TopN(H11:BS11,6)","v":1053},{"$f":"SUM(IF(CountRaces(H11:I11)>0,1,0),IF(CountRaces(J11:S11)>0,1,0),IF(CountRaces(T11:AC11)>0,1,0),IF(CountRaces(AD11:AK11)>0,1,0),IF(CountRaces(AL11:AQ11)>0,1,0),IF(CountRaces(AR11:AY11)>0,1,0),IF(CountRaces(AZ11:BG11)>0,1,0),IF(CountRaces(BH11:BM11)>0,1,0),IF(CountRaces(BN11:BS11)>0,1,0))","v":2},{"$f":"CountRaces(H11:BS11)","v":3},"PREST. / PUNTI",null,null,"20.76 =",368,"44.98 =",383,null,null,null,null,null,null,"11.17 =",302]
[5,"CINISELLI Samuele","PV108 C.U.S. PAVIA",{"$f":"TopN(H12:BS12,6)","v":1010},{"$f":"SUM(IF(CountRaces(H12:I12)>0,1,0),IF(CountRaces(J12:S12)>0,1,0),IF(CountRaces(T12:AC12)>0,1,0),IF(CountRaces(AD12:AK12)>0,1,0),IF(CountRaces(AL12:AQ12)>0,1,0),IF(CountRaces(AR12:AY12)>0,1,0),IF(CountRaces(AZ12:BG12)>0,1,0),IF(CountRaces(BH12:BM12)>0,1,0),IF(CountRaces(BN12:BS12)>0,1,0))","v":2},{"$f":"CountRaces(H12:BS12)","v":2},"PREST. / PUNTI","3:09.02 =",456,null,null,null,null,null,null,null,null,null,null,null,null,"4:03.91 =",554]
[6,"ROSSI Samuel","PV421 ATLETICA CASORATE PRIMO",{"$f":"TopN(H13:BS13,6)","v":894},{"$f":"SUM(IF(CountRaces(H13:I13)>0,1,0),IF(CountRaces(J13:S13)>0,1,0),IF(CountRaces(T13:AC13)>0,1,0),IF(CountRaces(AD13:AK13)>0,1,0),IF(CountRaces(AL13:AQ13)>0,1,0),IF(CountRaces(AR13:AY13)>0,1,0),IF(CountRaces(AZ13:BG13)>0,1,0),IF(CountRaces(BH13:BM13)>0,1,0),IF(CountRaces(BN13:BS13)>0,1,0))","v":1},{"$f":"CountRaces(H13:BS13)","v":2},"PREST. / PUNTI",null,null,"19.82 =",491,"44.60 =",403]
[7,"NEGRI Lorenzo","PV108 C.U.S. PAVIA",{"$f":"TopN(H14:BS14,6)","v":881},{"$f":"SUM(IF(CountRaces(H14:I14)>0,1,0),IF(CountRaces(J14:S14)>0,1,0),IF(CountRaces(T14:AC14)>0,1,0),IF(CountRaces(AD14:AK14)>0,1,0),IF(CountRaces(AL14:AQ14)>0,1,0),IF(CountRaces(AR14:AY14)>0,1,0),IF(CountRaces(AZ14:BG14)>0,1,0),IF(CountRaces(BH14:BM14)>0,1,0),IF(CountRaces(BN14:BS14)>0,1,0))","v":1},{"$f":"CountRaces(H14:BS14)","v":2},"PREST. / PUNTI",null,null,null,null,"44.13 =",428,null,null,null,null,"4.78 =",453]
[8,"BASSI Mattia Nelson","PV108 C.U.S. PAVIA",{"$f":"TopN(H15:BS15,6)","v":857},{"$f":"SUM(IF(CountRaces(H15:I15)>0,1,0),IF(CountRaces(J15:S15)>0,1,0),IF(CountRaces(T15:AC15)>0,1,0),IF(CountRaces(AD15:AK15)>0,1,0),IF(CountRaces(AL15:AQ15)>0,1,0),IF(CountRaces(AR15:AY15)>0,1,0),IF(CountRaces(AZ15:BG15)>0,1,0),IF(CountRaces(BH15:BM15)>0,1,0),IF(CountRaces(BN15:BS15)>0,1,0))","v":1},{"$f":"CountRaces(H15:BS15)","v":2},"PREST. / PUNTI",null,null,null,null,null,null,null,null,null,null,null,null,null,null,null,null,null,null,"8.96 =",353,"1.46 =",504]
[9,"GROSSI Simone","PV108 C.U.S. PAVIA",{"$f":"TopN(H16:BS16,6)","v":759},{"$f":"SUM(IF(CountRaces(H16:I16)>0,1,0),IF(CountRaces(J16:S16)>0,1,0),IF(CountRaces(T16:AC16)>0,1,0),IF(CountRaces(AD16:AK16)>0,1,0),IF(CountRaces(AL16:AQ16)>0,1,0),IF(CountRaces(AR16:AY16)>0,1,0),IF(CountRaces(AZ16:BG16)>0,1,0),IF(CountRaces(BH16:BM16)>0,1,0),IF(CountRaces(BN16:BS16)>0,1,0))","v":2},{"$f":"CountRaces(H16:BS16)","v":2},"PREST. / PUNTI",null,null,null,null,null,null,null,null,null,null,"4.54 =",393,null,null,null,null,null,null,"9.05 =",366]
[10,"FORESTI Lorenzo","PV108 C.U.S. PAVIA",{"$f":"TopN(H17:BS17,6)","v":574},{"$f":"SUM(IF(CountRaces(H17:I17)>0,1,0),IF(CountRaces(J17:S17)>0,1,0),IF(CountRaces(T17:AC17)>0,1,0),IF(CountRaces(AD17:AK17)>0,1,0),IF(CountRaces(AL17:AQ17)>0,1,0),IF(CountRaces(AR17:AY17)>0,1,0),IF(CountRaces(AZ17:BG17)>0,1,0),IF(CountRaces(BH17:BM17)>0,1,0),IF(CountRaces(BN17:BS17)>0,1,0))","v":1},{"$f":"CountRaces(H17:BS17)","v":1},"PREST. / PUNTI",null,null,null,null,null,null,null,null,null,null,null,null,"10.22 =",574]
[11,"PADUANO Thomas","PV108 C.U.S. PAVIA",{"$f":"TopN(H18:BS18,6)","v":532},{"$f":"SUM(IF(CountRaces(H18:I18)>0,1,0),IF(CountRaces(J18:S18)>0,1,0),IF(CountRaces(T18:AC18)>0,1,0),IF(CountRaces(AD18:AK18)>0,1,0),IF(CountRaces(AL18:AQ18)>0,1,0),IF(CountRaces(AR18:AY18)>0,1,0),IF(CountRaces(AZ18:BG18)>0,1,0),IF(CountRaces(BH18:BM18)>0,1,0),IF(CountRaces(BN18:BS18)>0,1,0))","v":1},{"$f":"CountRaces(H18:BS18)","v":1},"PREST. / PUNTI",null,null,null,null,"42.31 =",532]
[12,"FERRARO Tommaso","PV108 C.U.S. PAVIA",{"$f":"TopN(H19:BS19,6)","v":526},{"$f":"SUM(IF(CountRaces(H19:I19)>0,1,0),IF(CountRaces(J19:S19)>0,1,0),IF(CountRaces(T19:AC19)>0,1,0),IF(CountRaces(AD19:AK19)>0,1,0),IF(CountRaces(AL19:AQ19)>0,1,0),IF(CountRaces(AR19:AY19)>0,1,0),IF(CountRaces(AZ19:BG19)>0,1,0),IF(CountRaces(BH19:BM19)>0,1,0),IF(CountRaces(BN19:BS19)>0,1,0))","v":1},{"$f":"CountRaces(H19:BS19)","v":1},"PREST. / PUNTI",null,null,"19.57 =",526]
[13,"COMINELLI Filippo","PV108 C.U.S. PAVIA",{"$f":"TopN(H20:BS20,6)","v":505},{"$f":"SUM(IF(CountRaces(H20:I20)>0,1,0),IF(CountRaces(J20:S20)>0,1,0),IF(CountRaces(T20:AC20)>0,1,0),IF(CountRaces(AD20:AK20)>0,1,0),IF(CountRaces(AL20:AQ20)>0,1,0),IF(CountRaces(AR20:AY20)>0,1,0),IF(CountRaces(AZ20:BG20)>0,1,0),IF(CountRaces(BH20:BM20)>0,1,0),IF(CountRaces(BN20:BS20)>0,1,0))","v":1},{"$f":"CountRaces(H20:BS20)","v":1},"PREST. / PUNTI",null,null,null,null,null,null,null,null,null,null,null,null,"10.44 =",505]
[14,"MAGGIONI Mario","PV412 LA PODISTICA ROBBIESE",{"$f":"TopN(H21:BS21,6)","v":476},{"$f":"SUM(IF(CountRaces(H21:I21)>0,1,0),IF(CountRaces(J21:S21)>0,1,0),IF(CountRaces(T21:AC21)>0,1,0),IF(CountRaces(AD21:AK21)>0,1,0),IF(CountRaces(AL21:AQ21)>0,1,0),IF(CountRaces(AR21:AY21)>0,1,0),IF(CountRaces(AZ21:BG21)>0,1,0),IF(CountRaces(BH21:BM21)>0,1,0),IF(CountRaces(BN21:BS21)>0,1,0))","v":1},{"$f":"CountRaces(H21:BS21)","v":1},"PREST. / PUNTI",null,null,null,null,null,null,null,null,null,null,"4.87 =",476]
[15,"GREGORI Andrea","PV245 ATLETICA IRIENSE VOGHERA",{"$f":"TopN(H22:BS22,6)","v":448},{"$f":"SUM(IF(CountRaces(H22:I22)>0,1,0),IF(CountRaces(J22:S22)>0,1,0),IF(CountRaces(T22:AC22)>0,1,0),IF(CountRaces(AD22:AK22)>0,1,0),IF(CountRaces(AL22:AQ22)>0,1,0),IF(CountRaces(AR22:AY22)>0,1,0),IF(CountRaces(AZ22:BG22)>0,1,0),IF(CountRaces(BH22:BM22)>0,1,0),IF(CountRaces(BN22:BS22)>0,1,0))","v":1},{"$f":"CountRaces(H22:BS22)","v":1},"PREST. / PUNTI",null,null,null,null,null,null,null,null,null,null,null,null,"10.63 =",448]
[16,"ZANARDI Riccardo","PV245 ATLETICA IRIENSE VOGHERA",{"$f":"TopN(H23:BS23,6)","v":394},{"$f":"SUM(IF(CountRaces(H23:I23)>0,1,0),IF(CountRaces(J23:S23)>0,1,0),IF(CountRaces(T23:AC23)>0,1,0),IF(CountRaces(AD23:AK23)>0,1,0),IF(CountRaces(AL23:AQ23)>0,1,0),IF(CountRaces(AR23:AY23)>0,1,0),IF(CountRaces(AZ23:BG23)>0,1,0),IF(CountRaces(BH23:BM23)>0,1,0),IF(CountRaces(BN23:BS23)>0,1,0))","v":1},{"$f":"CountRaces(H23:BS23)","v":1},"PREST. / PUNTI",null,null,null,null,null,null,null,null,null,null,null,null,"10.82 =",394]
[17,"GARDIMAN Gabriel","PV108 C.U.S. PAVIA",{"$f":"TopN(H24:BS24,6)","v":340},{"$f":"SUM(IF(CountRaces(H24:I24)>0,1,0),IF(CountRaces(J24:S24)>0,1,0),IF(CountRaces(T24:AC24)>0,1,0),IF(CountRaces(AD24:AK24)>0,1,0),IF(CountRaces(AL24:AQ24)>0,1,0),IF(CountRaces(AR24:AY24)>0,1,0),IF(CountRaces(AZ24:BG24)>0,1,0),IF(CountRaces(BH24:BM24)>0,1,0),IF(CountRaces(BN24:BS24)>0,1,0))","v":1},{"$f":"CountRaces(H24:BS24)","v":1},"PREST. / PUNTI",null,null,"20.99 =",340]
[18,"CORDARA Diego Gabriele","PV108 C.U.S. PAVIA",{"$f":"TopN(H25:BS25,6)","v":312},{"$f":"SUM(IF(CountRaces(H25:I25)>0,1,0),IF(CountRaces(J25:S25)>0,1,0),IF(CountRaces(T25:AC25)>0,1,0),IF(CountRaces(AD25:AK25)>0,1,0),IF(CountRaces(AL25:AQ25)>0,1,0),IF(CountRaces(AR25:AY25)>0,1,0),IF(CountRaces(AZ25:BG25)>0,1,0),IF(CountRaces(BH25:BM25)>0,1,0),IF(CountRaces(BN25:BS25)>0,1,0))","v":1},{"$f":"CountRaces(H25:BS25)","v":1},"PREST. / PUNTI",null,null,null,null,null,null,null,null,"3:20.75 =",312]
[19,"DALL'OLIO Jacopo","PV245 ATLETICA IRIENSE VOGHERA",{"$f":"TopN(H26:BS26,6)","v":261},{"$f":"SUM(IF(CountRaces(H26:I26)>0,1,0),IF(CountRaces(J26:S26)>0,1,0),IF(CountRaces(T26:AC26)>0,1,0),IF(CountRaces(AD26:AK26)>0,1,0),IF(CountRaces(AL26:AQ26)>0,1,0),IF(CountRaces(AR26:AY26)>0,1,0),IF(CountRaces(AZ26:BG26)>0,1,0),IF(CountRaces(BH26:BM26)>0,1,0),IF(CountRaces(BN26:BS26)>0,1,0))","v":1},{"$f":"CountRaces(H26:BS26)","v":1},"PREST. / PUNTI","3:25.21 =",261]
[20,"STOCHITA Rares Denis","PV245 ATLETICA IRIENSE VOGHERA",{"$f":"TopN(H27:BS27,6)","v":135},{"$f":"SUM(IF(CountRaces(H27:I27)>0,1,0),IF(CountRaces(J27:S27)>0,1,0),IF(CountRaces(T27:AC27)>0,1,0),IF(CountRaces(AD27:AK27)>0,1,0),IF(CountRaces(AL27:AQ27)>0,1,0),IF(CountRaces(AR27:AY27)>0,1,0),IF(CountRaces(AZ27:BG27)>0,1,0),IF(CountRaces(BH27:BM27)>0,1,0),IF(CountRaces(BN27:BS27)>0,1,0))","v":1},{"$f":"CountRaces(H27:BS27)","v":1},"PREST. / PUNTI","3:37.58 =",135]